Business Unit Name,Invoice Number,Voucher Number,Invoice Date,Invoice Creation Date,Supplier Name,Distribution Amount,Invoice Line Number,Invoice Line Type,Invoice Line Description,Tax Code,Cost Centre Code,CC Description,Subjective Code,Subjective Description,Sub One Code,Sub One Description,Sub Two Code,Sub Two Description,Payment Status,Payment Date
Harrogate and District NHS Other Foundation Trust BU,1010069458,6025625,14-03-19,04-04-19,York Teaching Hospital Nhs Foundation Trust,8100,1,ITEM,MAR 19 SALARY RECHARGES,,251009,Ent - Medical Staffing,802120,Consultant - Other Organisation Recharges,1010,Consultant Recharge,6022,Rcb - York Hospitals Nhs Foundation Trust,Fully Paid,12-06-20
Harrogate and District NHS Other Foundation Trust BU,1010069458,6025625,14-03-19,04-04-19,York Teaching Hospital Nhs Foundation Trust,8133,2,ITEM,MAR 19 SALARY RECHARGES,,251009,Ent - Medical Staffing,802600,Staff Grade Practitioner,1023,Staff Grade  Recharge,6022,Rcb - York Hospitals Nhs Foundation Trust,Fully Paid,12-06-20
Harrogate and District NHS Other Foundation Trust BU,1010069458,6025625,14-03-19,04-04-19,York Teaching Hospital Nhs Foundation Trust,2351,3,ITEM,MAR 19 SALARY RECHARGES,,251009,Ent - Medical Staffing,802120,Consultant - Other Organisation Recharges,1010,Consultant Recharge,6022,Rcb - York Hospitals Nhs Foundation Trust,Fully Paid,12-06-20
Harrogate and District NHS Other Foundation Trust BU,1010069458,6025625,14-03-19,04-04-19,York Teaching Hospital Nhs Foundation Trust,8739,4,ITEM,MAR 19 SALARY RECHARGES,,251009,Ent - Medical Staffing,802650,Specialty Doctors,1023,Staff Grade  Recharge,6022,Rcb - York Hospitals Nhs Foundation Trust,Fully Paid,12-06-20
Harrogate and District NHS Other Foundation Trust BU,1010069458,6025625,14-03-19,04-04-19,York Teaching Hospital Nhs Foundation Trust,10207,5,ITEM,MAR 19 SALARY RECHARGES,,251009,Ent - Medical Staffing,802120,Consultant - Other Organisation Recharges,1010,Consultant Recharge,6022,Rcb - York Hospitals Nhs Foundation Trust,Fully Paid,12-06-20
Harrogate and District NHS Other Foundation Trust BU,1010069458,6025625,14-03-19,04-04-19,York Teaching Hospital Nhs Foundation Trust,15264,6,ITEM,MAR 19 SALARY RECHARGES,,251015,Maxillo Facial - Medical Staffing,802120,Consultant - Other Organisation Recharges,1010,Consultant Recharge,6022,Rcb - York Hospitals Nhs Foundation Trust,Fully Paid,12-06-20
Harrogate and District NHS Other Foundation Trust BU,1010069458,6025625,14-03-19,04-04-19,York Teaching Hospital Nhs Foundation Trust,10088,7,ITEM,MAR 19 SALARY RECHARGES,,251016,Orthodontics - Medical Staffing,802120,Consultant - Other Organisation Recharges,1010,Consultant Recharge,6022,Rcb - York Hospitals Nhs Foundation Trust,Fully Paid,12-06-20
Harrogate and District NHS Other Foundation Trust BU,1010069458,6025625,14-03-19,04-04-19,York Teaching Hospital Nhs Foundation Trust,8772,8,ITEM,MAR 19 SALARY RECHARGES,,251012,Gen Surgery - Medical Staffing,802120,Consultant - Other Organisation Recharges,1010,Consultant Recharge,6022,Rcb - York Hospitals Nhs Foundation Trust,Fully Paid,12-06-20
Harrogate and District NHS Other Foundation Trust BU,1010069458,6025625,14-03-19,04-04-19,York Teaching Hospital Nhs Foundation Trust,2166,9,ITEM,MAR 19 SALARY RECHARGES,,251253,Admin Services - General Surgery,826010,B3 Medical Secretaries,2030,A&C,6022,Rcb - York Hospitals Nhs Foundation Trust,Fully Paid,12-06-20
Harrogate and District NHS Other Foundation Trust BU,1010069458,6025625,14-03-19,04-04-19,York Teaching Hospital Nhs Foundation Trust,2600,10,ITEM,MAR 19 SALARY RECHARGES,,251037,Plastics - Medical Staffing,802120,Consultant - Other Organisation Recharges,1010,Consultant Recharge,6022,Rcb - York Hospitals Nhs Foundation Trust,Fully Paid,12-06-20
Harrogate and District NHS Other Foundation Trust BU,1010069458,6025625,14-03-19,04-04-19,York Teaching Hospital Nhs Foundation Trust,15933,11,ITEM,MAR 19 SALARY RECHARGES,,251044,Renal - Medical Staffing,802120,Consultant - Other Organisation Recharges,1010,Consultant Recharge,6022,Rcb - York Hospitals Nhs Foundation Trust,Fully Paid,12-06-20
Harrogate and District NHS Other Foundation Trust BU,1010069458,6025625,14-03-19,04-04-19,York Teaching Hospital Nhs Foundation Trust,1675,12,ITEM,MAR 19 SALARY RECHARGES,,251044,Renal - Medical Staffing,808500,B5 Qualified Nurse,1010,Consultant Recharge,6022,Rcb - York Hospitals Nhs Foundation Trust,Fully Paid,12-06-20
Harrogate and District NHS Other Foundation Trust BU,1010069458,6025625,14-03-19,04-04-19,York Teaching Hospital Nhs Foundation Trust,2236,13,ITEM,MAR 19 SALARY RECHARGES,,251044,Renal - Medical Staffing,813700,B7 Dietitian,2033,Professional & Technical,6022,Rcb - York Hospitals Nhs Foundation Trust,Fully Paid,12-06-20
Harrogate and District NHS Other Foundation Trust BU,1010069458,6025625,14-03-19,04-04-19,York Teaching Hospital Nhs Foundation Trust,14363,14,ITEM,MAR 19 SALARY RECHARGES,,251017,Oncology - Medical Staffing,802120,Consultant - Other Organisation Recharges,1010,Consultant Recharge,6022,Rcb - York Hospitals Nhs Foundation Trust,Fully Paid,12-06-20
Harrogate and District NHS Other Foundation Trust BU,1010069458,6025625,14-03-19,04-04-19,York Teaching Hospital Nhs Foundation Trust,10227,15,ITEM,MAR 19 SALARY RECHARGES,,251010,Ophthalmology - Medical Staffing,802120,Consultant - Other Organisation Recharges,1010,Consultant Recharge,6022,Rcb - York Hospitals Nhs Foundation Trust,Fully Paid,12-06-20
Harrogate and District NHS Other Foundation Trust BU,1010069458,6025625,14-03-19,04-04-19,York Teaching Hospital Nhs Foundation Trust,0,16,TAX,MAR 19 SALARY RECHARGES,ZERO,259999,Default Value,156000,Vat Debtor < One Year,1000,Default Value,1000,Default Value,Fully Paid,12-06-20
Harrogate and District NHS Other Foundation Trust BU,1010069458,6025625,14-03-19,04-04-19,York Teaching Hospital Nhs Foundation Trust,0,16,TAX,MAR 19 SALARY RECHARGES,ZERO,251012,Gen Surgery - Medical Staffing,802120,Consultant - Other Organisation Recharges,1010,Consultant Recharge,6022,Rcb - York Hospitals Nhs Foundation Trust,Fully Paid,12-06-20
Harrogate and District NHS Other Foundation Trust BU,1010069458,6025625,14-03-19,04-04-19,York Teaching Hospital Nhs Foundation Trust,0,16,TAX,MAR 19 SALARY RECHARGES,ZERO,259999,Default Value,156000,Vat Debtor < One Year,1000,Default Value,1000,Default Value,Fully Paid,12-06-20
Harrogate and District NHS Other Foundation Trust BU,1010069458,6025625,14-03-19,04-04-19,York Teaching Hospital Nhs Foundation Trust,0,16,TAX,MAR 19 SALARY RECHARGES,ZERO,251253,Admin Services - General Surgery,826010,B3 Medical Secretaries,2030,A&C,6022,Rcb - York Hospitals Nhs Foundation Trust,Fully Paid,12-06-20
Harrogate and District NHS Other Foundation Trust BU,1010069458,6025625,14-03-19,04-04-19,York Teaching Hospital Nhs Foundation Trust,0,16,TAX,MAR 19 SALARY RECHARGES,ZERO,259999,Default Value,156000,Vat Debtor < One Year,1000,Default Value,1000,Default Value,Fully Paid,12-06-20
Harrogate and District NHS Other Foundation Trust BU,1010069458,6025625,14-03-19,04-04-19,York Teaching Hospital Nhs Foundation Trust,0,16,TAX,MAR 19 SALARY RECHARGES,ZERO,251037,Plastics - Medical Staffing,802120,Consultant - Other Organisation Recharges,1010,Consultant Recharge,6022,Rcb - York Hospitals Nhs Foundation Trust,Fully Paid,12-06-20
Harrogate and District NHS Other Foundation Trust BU,1010069458,6025625,14-03-19,04-04-19,York Teaching Hospital Nhs Foundation Trust,0,16,TAX,MAR 19 SALARY RECHARGES,ZERO,259999,Default Value,156000,Vat Debtor < One Year,1000,Default Value,1000,Default Value,Fully Paid,12-06-20
Harrogate and District NHS Other Foundation Trust BU,1010069458,6025625,14-03-19,04-04-19,York Teaching Hospital Nhs Foundation Trust,0,16,TAX,MAR 19 SALARY RECHARGES,ZERO,251044,Renal - Medical Staffing,802120,Consultant - Other Organisation Recharges,1010,Consultant Recharge,6022,Rcb - York Hospitals Nhs Foundation Trust,Fully Paid,12-06-20
Harrogate and District NHS Other Foundation Trust BU,1010069458,6025625,14-03-19,04-04-19,York Teaching Hospital Nhs Foundation Trust,0,16,TAX,MAR 19 SALARY RECHARGES,ZERO,259999,Default Value,156000,Vat Debtor < One Year,1000,Default Value,1000,Default Value,Fully Paid,12-06-20
Harrogate and District NHS Other Foundation Trust BU,1010069458,6025625,14-03-19,04-04-19,York Teaching Hospital Nhs Foundation Trust,0,16,TAX,MAR 19 SALARY RECHARGES,ZERO,251044,Renal - Medical Staffing,808500,B5 Qualified Nurse,1010,Consultant Recharge,6022,Rcb - York Hospitals Nhs Foundation Trust,Fully Paid,12-06-20
Harrogate and District NHS Other Foundation Trust BU,1010069458,6025625,14-03-19,04-04-19,York Teaching Hospital Nhs Foundation Trust,0,16,TAX,MAR 19 SALARY RECHARGES,ZERO,259999,Default Value,156000,Vat Debtor < One Year,1000,Default Value,1000,Default Value,Fully Paid,12-06-20
Harrogate and District NHS Other Foundation Trust BU,1010069458,6025625,14-03-19,04-04-19,York Teaching Hospital Nhs Foundation Trust,0,16,TAX,MAR 19 SALARY RECHARGES,ZERO,251044,Renal - Medical Staffing,813700,B7 Dietitian,2033,Professional & Technical,6022,Rcb - York Hospitals Nhs Foundation Trust,Fully Paid,12-06-20
Harrogate and District NHS Other Foundation Trust BU,1010069458,6025625,14-03-19,04-04-19,York Teaching Hospital Nhs Foundation Trust,0,16,TAX,MAR 19 SALARY RECHARGES,ZERO,259999,Default Value,156000,Vat Debtor < One Year,1000,Default Value,1000,Default Value,Fully Paid,12-06-20
Harrogate and District NHS Other Foundation Trust BU,1010069458,6025625,14-03-19,04-04-19,York Teaching Hospital Nhs Foundation Trust,0,16,TAX,MAR 19 SALARY RECHARGES,ZERO,251017,Oncology - Medical Staffing,802120,Consultant - Other Organisation Recharges,1010,Consultant Recharge,6022,Rcb - York Hospitals Nhs Foundation Trust,Fully Paid,12-06-20
Harrogate and District NHS Other Foundation Trust BU,1010069458,6025625,14-03-19,04-04-19,York Teaching Hospital Nhs Foundation Trust,0,16,TAX,MAR 19 SALARY RECHARGES,ZERO,251016,Orthodontics - Medical Staffing,802120,Consultant - Other Organisation Recharges,1010,Consultant Recharge,6022,Rcb - York Hospitals Nhs Foundation Trust,Fully Paid,12-06-20
Harrogate and District NHS Other Foundation Trust BU,1010069458,6025625,14-03-19,04-04-19,York Teaching Hospital Nhs Foundation Trust,0,16,TAX,MAR 19 SALARY RECHARGES,ZERO,259999,Default Value,156000,Vat Debtor < One Year,1000,Default Value,1000,Default Value,Fully Paid,12-06-20
Harrogate and District NHS Other Foundation Trust BU,1010069458,6025625,14-03-19,04-04-19,York Teaching Hospital Nhs Foundation Trust,0,16,TAX,MAR 19 SALARY RECHARGES,ZERO,251015,Maxillo Facial - Medical Staffing,802120,Consultant - Other Organisation Recharges,1010,Consultant Recharge,6022,Rcb - York Hospitals Nhs Foundation Trust,Fully Paid,12-06-20
Harrogate and District NHS Other Foundation Trust BU,1010069458,6025625,14-03-19,04-04-19,York Teaching Hospital Nhs Foundation Trust,0,16,TAX,MAR 19 SALARY RECHARGES,ZERO,259999,Default Value,156000,Vat Debtor < One Year,1000,Default Value,1000,Default Value,Fully Paid,12-06-20
Harrogate and District NHS Other Foundation Trust BU,1010069458,6025625,14-03-19,04-04-19,York Teaching Hospital Nhs Foundation Trust,0,16,TAX,MAR 19 SALARY RECHARGES,ZERO,251009,Ent - Medical Staffing,802120,Consultant - Other Organisation Recharges,1010,Consultant Recharge,6022,Rcb - York Hospitals Nhs Foundation Trust,Fully Paid,12-06-20
Harrogate and District NHS Other Foundation Trust BU,1010069458,6025625,14-03-19,04-04-19,York Teaching Hospital Nhs Foundation Trust,0,16,TAX,MAR 19 SALARY RECHARGES,ZERO,259999,Default Value,156000,Vat Debtor < One Year,1000,Default Value,1000,Default Value,Fully Paid,12-06-20
Harrogate and District NHS Other Foundation Trust BU,1010069458,6025625,14-03-19,04-04-19,York Teaching Hospital Nhs Foundation Trust,0,16,TAX,MAR 19 SALARY RECHARGES,ZERO,251009,Ent - Medical Staffing,802650,Specialty Doctors,1023,Staff Grade  Recharge,6022,Rcb - York Hospitals Nhs Foundation Trust,Fully Paid,12-06-20
Harrogate and District NHS Other Foundation Trust BU,1010069458,6025625,14-03-19,04-04-19,York Teaching Hospital Nhs Foundation Trust,0,16,TAX,MAR 19 SALARY RECHARGES,ZERO,259999,Default Value,156000,Vat Debtor < One Year,1000,Default Value,1000,Default Value,Fully Paid,12-06-20
Harrogate and District NHS Other Foundation Trust BU,1010069458,6025625,14-03-19,04-04-19,York Teaching Hospital Nhs Foundation Trust,0,16,TAX,MAR 19 SALARY RECHARGES,ZERO,251009,Ent - Medical Staffing,802120,Consultant - Other Organisation Recharges,1010,Consultant Recharge,6022,Rcb - York Hospitals Nhs Foundation Trust,Fully Paid,12-06-20
Harrogate and District NHS Other Foundation Trust BU,1010069458,6025625,14-03-19,04-04-19,York Teaching Hospital Nhs Foundation Trust,0,16,TAX,MAR 19 SALARY RECHARGES,ZERO,259999,Default Value,156000,Vat Debtor < One Year,1000,Default Value,1000,Default Value,Fully Paid,12-06-20
Harrogate and District NHS Other Foundation Trust BU,1010069458,6025625,14-03-19,04-04-19,York Teaching Hospital Nhs Foundation Trust,0,16,TAX,MAR 19 SALARY RECHARGES,ZERO,251009,Ent - Medical Staffing,802600,Staff Grade Practitioner,1023,Staff Grade  Recharge,6022,Rcb - York Hospitals Nhs Foundation Trust,Fully Paid,12-06-20
Harrogate and District NHS Other Foundation Trust BU,1010069458,6025625,14-03-19,04-04-19,York Teaching Hospital Nhs Foundation Trust,0,16,TAX,MAR 19 SALARY RECHARGES,ZERO,259999,Default Value,156000,Vat Debtor < One Year,1000,Default Value,1000,Default Value,Fully Paid,12-06-20
Harrogate and District NHS Other Foundation Trust BU,1010069458,6025625,14-03-19,04-04-19,York Teaching Hospital Nhs Foundation Trust,0,16,TAX,MAR 19 SALARY RECHARGES,ZERO,251009,Ent - Medical Staffing,802120,Consultant - Other Organisation Recharges,1010,Consultant Recharge,6022,Rcb - York Hospitals Nhs Foundation Trust,Fully Paid,12-06-20
Harrogate and District NHS Other Foundation Trust BU,1010069458,6025625,14-03-19,04-04-19,York Teaching Hospital Nhs Foundation Trust,0,16,TAX,MAR 19 SALARY RECHARGES,ZERO,259999,Default Value,156000,Vat Debtor < One Year,1000,Default Value,1000,Default Value,Fully Paid,12-06-20
Harrogate and District NHS Other Foundation Trust BU,1010069458,6025625,14-03-19,04-04-19,York Teaching Hospital Nhs Foundation Trust,0,16,TAX,MAR 19 SALARY RECHARGES,ZERO,251010,Ophthalmology - Medical Staffing,802120,Consultant - Other Organisation Recharges,1010,Consultant Recharge,6022,Rcb - York Hospitals Nhs Foundation Trust,Fully Paid,12-06-20
Harrogate and District NHS Other Foundation Trust BU,1010069458,6025625,14-03-19,04-04-19,York Teaching Hospital Nhs Foundation Trust,0,16,TAX,MAR 19 SALARY RECHARGES,ZERO,259999,Default Value,156000,Vat Debtor < One Year,1000,Default Value,1000,Default Value,Fully Paid,12-06-20
Harrogate and District NHS Other Foundation Trust BU,1010078819,6075585,20-05-20,22-05-20,York Teaching Hospital Nhs Foundation Trust,398,1,ITEM,CLINICAL ALLIANCE AUDIOLOGY APR 20,,251703,Audiology,727000,Travel And Subsistence,1000,Default Value,6022,Rcb - York Hospitals Nhs Foundation Trust,Fully Paid,05-06-20
Harrogate and District NHS Other Foundation Trust BU,1010078819,6075585,20-05-20,22-05-20,York Teaching Hospital Nhs Foundation Trust,11860,2,ITEM,CLINICAL ALLIANCE AUDIOLOGY APR 20,,251703,Audiology,824500,B5  Other Healthcare Scientist,1035,B5 Prof & Tech,6022,Rcb - York Hospitals Nhs Foundation Trust,Fully Paid,05-06-20
Harrogate and District NHS Other Foundation Trust BU,1010078819,6075585,20-05-20,22-05-20,York Teaching Hospital Nhs Foundation Trust,6009,3,ITEM,CLINICAL ALLIANCE AUDIOLOGY APR 20,,251703,Audiology,824600,B6  Other Healthcare Scientist,1015,B6 Prof & Tech,6022,Rcb - York Hospitals Nhs Foundation Trust,Fully Paid,05-06-20
Harrogate and District NHS Other Foundation Trust BU,1010078819,6075585,20-05-20,22-05-20,York Teaching Hospital Nhs Foundation Trust,12107,4,ITEM,CLINICAL ALLIANCE AUDIOLOGY APR 20,,251703,Audiology,824700,B7  Other Healthcare Scientist,1014,B7 Prof & Tech,6022,Rcb - York Hospitals Nhs Foundation Trust,Fully Paid,05-06-20
Harrogate and District NHS Other Foundation Trust BU,1010078819,6075585,20-05-20,22-05-20,York Teaching Hospital Nhs Foundation Trust,1325,5,ITEM,CLINICAL ALLIANCE AUDIOLOGY APR 20,,251703,Audiology,824810,B8a  Other Healthcare Scientist,1000,Default Value,6022,Rcb - York Hospitals Nhs Foundation Trust,Fully Paid,05-06-20
Harrogate and District NHS Other Foundation Trust BU,1010078819,6075585,20-05-20,22-05-20,York Teaching Hospital Nhs Foundation Trust,4350,6,ITEM,CLINICAL ALLIANCE AUDIOLOGY APR 20,,251703,Audiology,825200,B2 Admin & Clerical (Non Medical Non Clinical),1000,Default Value,6022,Rcb - York Hospitals Nhs Foundation Trust,Fully Paid,05-06-20
Harrogate and District NHS Other Foundation Trust BU,1010078819,6075585,20-05-20,22-05-20,York Teaching Hospital Nhs Foundation Trust,0,7,TAX,CLINICAL ALLIANCE AUDIOLOGY APR 20,ZERO,251703,Audiology,824700,B7  Other Healthcare Scientist,1014,B7 Prof & Tech,6022,Rcb - York Hospitals Nhs Foundation Trust,Fully Paid,05-06-20
Harrogate and District NHS Other Foundation Trust BU,1010078819,6075585,20-05-20,22-05-20,York Teaching Hospital Nhs Foundation Trust,0,7,TAX,CLINICAL ALLIANCE AUDIOLOGY APR 20,ZERO,259999,Default Value,156000,Vat Debtor < One Year,1000,Default Value,1000,Default Value,Fully Paid,05-06-20
Harrogate and District NHS Other Foundation Trust BU,1010078819,6075585,20-05-20,22-05-20,York Teaching Hospital Nhs Foundation Trust,0,7,TAX,CLINICAL ALLIANCE AUDIOLOGY APR 20,ZERO,251703,Audiology,824810,B8a  Other Healthcare Scientist,1000,Default Value,6022,Rcb - York Hospitals Nhs Foundation Trust,Fully Paid,05-06-20
Harrogate and District NHS Other Foundation Trust BU,1010078819,6075585,20-05-20,22-05-20,York Teaching Hospital Nhs Foundation Trust,0,7,TAX,CLINICAL ALLIANCE AUDIOLOGY APR 20,ZERO,259999,Default Value,156000,Vat Debtor < One Year,1000,Default Value,1000,Default Value,Fully Paid,05-06-20
Harrogate and District NHS Other Foundation Trust BU,1010078819,6075585,20-05-20,22-05-20,York Teaching Hospital Nhs Foundation Trust,0,7,TAX,CLINICAL ALLIANCE AUDIOLOGY APR 20,ZERO,251703,Audiology,825200,B2 Admin & Clerical (Non Medical Non Clinical),1000,Default Value,6022,Rcb - York Hospitals Nhs Foundation Trust,Fully Paid,05-06-20
Harrogate and District NHS Other Foundation Trust BU,1010078819,6075585,20-05-20,22-05-20,York Teaching Hospital Nhs Foundation Trust,0,7,TAX,CLINICAL ALLIANCE AUDIOLOGY APR 20,ZERO,259999,Default Value,156000,Vat Debtor < One Year,1000,Default Value,1000,Default Value,Fully Paid,05-06-20
Harrogate and District NHS Other Foundation Trust BU,1010078819,6075585,20-05-20,22-05-20,York Teaching Hospital Nhs Foundation Trust,0,7,TAX,CLINICAL ALLIANCE AUDIOLOGY APR 20,ZERO,251703,Audiology,824600,B6  Other Healthcare Scientist,1015,B6 Prof & Tech,6022,Rcb - York Hospitals Nhs Foundation Trust,Fully Paid,05-06-20
Harrogate and District NHS Other Foundation Trust BU,1010078819,6075585,20-05-20,22-05-20,York Teaching Hospital Nhs Foundation Trust,0,7,TAX,CLINICAL ALLIANCE AUDIOLOGY APR 20,ZERO,259999,Default Value,156000,Vat Debtor < One Year,1000,Default Value,1000,Default Value,Fully Paid,05-06-20
Harrogate and District NHS Other Foundation Trust BU,1010078819,6075585,20-05-20,22-05-20,York Teaching Hospital Nhs Foundation Trust,0,7,TAX,CLINICAL ALLIANCE AUDIOLOGY APR 20,ZERO,251703,Audiology,824500,B5  Other Healthcare Scientist,1035,B5 Prof & Tech,6022,Rcb - York Hospitals Nhs Foundation Trust,Fully Paid,05-06-20
Harrogate and District NHS Other Foundation Trust BU,1010078819,6075585,20-05-20,22-05-20,York Teaching Hospital Nhs Foundation Trust,0,7,TAX,CLINICAL ALLIANCE AUDIOLOGY APR 20,ZERO,259999,Default Value,156000,Vat Debtor < One Year,1000,Default Value,1000,Default Value,Fully Paid,05-06-20
Harrogate and District NHS Other Foundation Trust BU,1010078819,6075585,20-05-20,22-05-20,York Teaching Hospital Nhs Foundation Trust,0,7,TAX,CLINICAL ALLIANCE AUDIOLOGY APR 20,ZERO,251703,Audiology,727000,Travel And Subsistence,1000,Default Value,6022,Rcb - York Hospitals Nhs Foundation Trust,Fully Paid,05-06-20
Harrogate and District NHS Other Foundation Trust BU,1010078819,6075585,20-05-20,22-05-20,York Teaching Hospital Nhs Foundation Trust,0,7,TAX,CLINICAL ALLIANCE AUDIOLOGY APR 20,ZERO,259999,Default Value,156000,Vat Debtor < One Year,1000,Default Value,1000,Default Value,Fully Paid,05-06-20
Harrogate and District NHS Other Foundation Trust BU,1010078820,6075582,20-05-20,22-05-20,York Teaching Hospital Nhs Foundation Trust,17431,1,ITEM,CLINICAL ALLIANCE APR 20,,251009,Ent - Medical Staffing,802120,Consultant - Other Organisation Recharges,1010,Consultant Recharge,6022,Rcb - York Hospitals Nhs Foundation Trust,Fully Paid,05-06-20
Harrogate and District NHS Other Foundation Trust BU,1010078820,6075582,20-05-20,22-05-20,York Teaching Hospital Nhs Foundation Trust,19862,2,ITEM,CLINICAL ALLIANCE APR 20,,251009,Ent - Medical Staffing,802650,Specialty Doctors,1023,Staff Grade  Recharge,6022,Rcb - York Hospitals Nhs Foundation Trust,Fully Paid,05-06-20
Harrogate and District NHS Other Foundation Trust BU,1010078820,6075582,20-05-20,22-05-20,York Teaching Hospital Nhs Foundation Trust,15144,3,ITEM,CLINICAL ALLIANCE APR 20,,251015,Maxillo Facial - Medical Staffing,802120,Consultant - Other Organisation Recharges,1010,Consultant Recharge,6022,Rcb - York Hospitals Nhs Foundation Trust,Fully Paid,05-06-20
Harrogate and District NHS Other Foundation Trust BU,1010078820,6075582,20-05-20,22-05-20,York Teaching Hospital Nhs Foundation Trust,8388,4,ITEM,CLINICAL ALLIANCE APR 20,,251016,Orthodontics - Medical Staffing,802120,Consultant - Other Organisation Recharges,1010,Consultant Recharge,6022,Rcb - York Hospitals Nhs Foundation Trust,Fully Paid,05-06-20
Harrogate and District NHS Other Foundation Trust BU,1010078820,6075582,20-05-20,22-05-20,York Teaching Hospital Nhs Foundation Trust,6649,5,ITEM,CLINICAL ALLIANCE APR 20,,251012,Gen Surgery - Medical Staffing,802120,Consultant - Other Organisation Recharges,1010,Consultant Recharge,6022,Rcb - York Hospitals Nhs Foundation Trust,Fully Paid,05-06-20
Harrogate and District NHS Other Foundation Trust BU,1010078820,6075582,20-05-20,22-05-20,York Teaching Hospital Nhs Foundation Trust,2463,6,ITEM,CLINICAL ALLIANCE APR 20,,251012,Gen Surgery - Medical Staffing,807060,B6 Nurse Specialists,2032,Nursing,6022,Rcb - York Hospitals Nhs Foundation Trust,Fully Paid,05-06-20
Harrogate and District NHS Other Foundation Trust BU,1010078820,6075582,20-05-20,22-05-20,York Teaching Hospital Nhs Foundation Trust,2047,7,ITEM,CLINICAL ALLIANCE APR 20,,251253,Admin Services - General Surgery,826010,B3 Medical Secretaries,2030,A&C,6022,Rcb - York Hospitals Nhs Foundation Trust,Fully Paid,05-06-20
Harrogate and District NHS Other Foundation Trust BU,1010078820,6075582,20-05-20,22-05-20,York Teaching Hospital Nhs Foundation Trust,16262,8,ITEM,CLINICAL ALLIANCE APR 20,,251044,Renal - Medical Staffing,802120,Consultant - Other Organisation Recharges,1010,Consultant Recharge,6022,Rcb - York Hospitals Nhs Foundation Trust,Fully Paid,05-06-20
Harrogate and District NHS Other Foundation Trust BU,1010078820,6075582,20-05-20,22-05-20,York Teaching Hospital Nhs Foundation Trust,1698,9,ITEM,CLINICAL ALLIANCE APR 20,,251044,Renal - Medical Staffing,808500,B5 Qualified Nurse,1010,Consultant Recharge,6022,Rcb - York Hospitals Nhs Foundation Trust,Fully Paid,05-06-20
Harrogate and District NHS Other Foundation Trust BU,1010078820,6075582,20-05-20,22-05-20,York Teaching Hospital Nhs Foundation Trust,2267,10,ITEM,CLINICAL ALLIANCE APR 20,,251044,Renal - Medical Staffing,813700,B7 Dietitian,2033,Professional & Technical,6022,Rcb - York Hospitals Nhs Foundation Trust,Fully Paid,05-06-20
Harrogate and District NHS Other Foundation Trust BU,1010078820,6075582,20-05-20,22-05-20,York Teaching Hospital Nhs Foundation Trust,12247,11,ITEM,CLINICAL ALLIANCE APR 20,,251017,Oncology - Medical Staffing,802120,Consultant - Other Organisation Recharges,1010,Consultant Recharge,6022,Rcb - York Hospitals Nhs Foundation Trust,Fully Paid,05-06-20
Harrogate and District NHS Other Foundation Trust BU,1010078820,6075582,20-05-20,22-05-20,York Teaching Hospital Nhs Foundation Trust,10650,12,ITEM,CLINICAL ALLIANCE APR 20,,251010,Ophthalmology - Medical Staffing,802120,Consultant - Other Organisation Recharges,1010,Consultant Recharge,6022,Rcb - York Hospitals Nhs Foundation Trust,Fully Paid,05-06-20
Harrogate and District NHS Other Foundation Trust BU,1010078820,6075582,20-05-20,22-05-20,York Teaching Hospital Nhs Foundation Trust,0,13,TAX,CLINICAL ALLIANCE APR 20,ZERO,259999,Default Value,156000,Vat Debtor < One Year,1000,Default Value,1000,Default Value,Fully Paid,05-06-20
Harrogate and District NHS Other Foundation Trust BU,1010078820,6075582,20-05-20,22-05-20,York Teaching Hospital Nhs Foundation Trust,0,13,TAX,CLINICAL ALLIANCE APR 20,ZERO,251009,Ent - Medical Staffing,802120,Consultant - Other Organisation Recharges,1010,Consultant Recharge,6022,Rcb - York Hospitals Nhs Foundation Trust,Fully Paid,05-06-20
Harrogate and District NHS Other Foundation Trust BU,1010078820,6075582,20-05-20,22-05-20,York Teaching Hospital Nhs Foundation Trust,0,13,TAX,CLINICAL ALLIANCE APR 20,ZERO,259999,Default Value,156000,Vat Debtor < One Year,1000,Default Value,1000,Default Value,Fully Paid,05-06-20
Harrogate and District NHS Other Foundation Trust BU,1010078820,6075582,20-05-20,22-05-20,York Teaching Hospital Nhs Foundation Trust,0,13,TAX,CLINICAL ALLIANCE APR 20,ZERO,251009,Ent - Medical Staffing,802650,Specialty Doctors,1023,Staff Grade  Recharge,6022,Rcb - York Hospitals Nhs Foundation Trust,Fully Paid,05-06-20
Harrogate and District NHS Other Foundation Trust BU,1010078820,6075582,20-05-20,22-05-20,York Teaching Hospital Nhs Foundation Trust,0,13,TAX,CLINICAL ALLIANCE APR 20,ZERO,259999,Default Value,156000,Vat Debtor < One Year,1000,Default Value,1000,Default Value,Fully Paid,05-06-20
Harrogate and District NHS Other Foundation Trust BU,1010078820,6075582,20-05-20,22-05-20,York Teaching Hospital Nhs Foundation Trust,0,13,TAX,CLINICAL ALLIANCE APR 20,ZERO,251015,Maxillo Facial - Medical Staffing,802120,Consultant - Other Organisation Recharges,1010,Consultant Recharge,6022,Rcb - York Hospitals Nhs Foundation Trust,Fully Paid,05-06-20
Harrogate and District NHS Other Foundation Trust BU,1010078820,6075582,20-05-20,22-05-20,York Teaching Hospital Nhs Foundation Trust,0,13,TAX,CLINICAL ALLIANCE APR 20,ZERO,259999,Default Value,156000,Vat Debtor < One Year,1000,Default Value,1000,Default Value,Fully Paid,05-06-20
Harrogate and District NHS Other Foundation Trust BU,1010078820,6075582,20-05-20,22-05-20,York Teaching Hospital Nhs Foundation Trust,0,13,TAX,CLINICAL ALLIANCE APR 20,ZERO,251016,Orthodontics - Medical Staffing,802120,Consultant - Other Organisation Recharges,1010,Consultant Recharge,6022,Rcb - York Hospitals Nhs Foundation Trust,Fully Paid,05-06-20
Harrogate and District NHS Other Foundation Trust BU,1010078820,6075582,20-05-20,22-05-20,York Teaching Hospital Nhs Foundation Trust,0,13,TAX,CLINICAL ALLIANCE APR 20,ZERO,259999,Default Value,156000,Vat Debtor < One Year,1000,Default Value,1000,Default Value,Fully Paid,05-06-20
Harrogate and District NHS Other Foundation Trust BU,1010078820,6075582,20-05-20,22-05-20,York Teaching Hospital Nhs Foundation Trust,0,13,TAX,CLINICAL ALLIANCE APR 20,ZERO,251012,Gen Surgery - Medical Staffing,802120,Consultant - Other Organisation Recharges,1010,Consultant Recharge,6022,Rcb - York Hospitals Nhs Foundation Trust,Fully Paid,05-06-20
Harrogate and District NHS Other Foundation Trust BU,1010078820,6075582,20-05-20,22-05-20,York Teaching Hospital Nhs Foundation Trust,0,13,TAX,CLINICAL ALLIANCE APR 20,ZERO,259999,Default Value,156000,Vat Debtor < One Year,1000,Default Value,1000,Default Value,Fully Paid,05-06-20
Harrogate and District NHS Other Foundation Trust BU,1010078820,6075582,20-05-20,22-05-20,York Teaching Hospital Nhs Foundation Trust,0,13,TAX,CLINICAL ALLIANCE APR 20,ZERO,251012,Gen Surgery - Medical Staffing,807060,B6 Nurse Specialists,2032,Nursing,6022,Rcb - York Hospitals Nhs Foundation Trust,Fully Paid,05-06-20
Harrogate and District NHS Other Foundation Trust BU,1010078820,6075582,20-05-20,22-05-20,York Teaching Hospital Nhs Foundation Trust,0,13,TAX,CLINICAL ALLIANCE APR 20,ZERO,259999,Default Value,156000,Vat Debtor < One Year,1000,Default Value,1000,Default Value,Fully Paid,05-06-20
Harrogate and District NHS Other Foundation Trust BU,1010078820,6075582,20-05-20,22-05-20,York Teaching Hospital Nhs Foundation Trust,0,13,TAX,CLINICAL ALLIANCE APR 20,ZERO,251253,Admin Services - General Surgery,826010,B3 Medical Secretaries,2030,A&C,6022,Rcb - York Hospitals Nhs Foundation Trust,Fully Paid,05-06-20
Harrogate and District NHS Other Foundation Trust BU,1010078820,6075582,20-05-20,22-05-20,York Teaching Hospital Nhs Foundation Trust,0,13,TAX,CLINICAL ALLIANCE APR 20,ZERO,259999,Default Value,156000,Vat Debtor < One Year,1000,Default Value,1000,Default Value,Fully Paid,05-06-20
Harrogate and District NHS Other Foundation Trust BU,1010078820,6075582,20-05-20,22-05-20,York Teaching Hospital Nhs Foundation Trust,0,13,TAX,CLINICAL ALLIANCE APR 20,ZERO,251044,Renal - Medical Staffing,802120,Consultant - Other Organisation Recharges,1010,Consultant Recharge,6022,Rcb - York Hospitals Nhs Foundation Trust,Fully Paid,05-06-20
Harrogate and District NHS Other Foundation Trust BU,1010078820,6075582,20-05-20,22-05-20,York Teaching Hospital Nhs Foundation Trust,0,13,TAX,CLINICAL ALLIANCE APR 20,ZERO,259999,Default Value,156000,Vat Debtor < One Year,1000,Default Value,1000,Default Value,Fully Paid,05-06-20
Harrogate and District NHS Other Foundation Trust BU,1010078820,6075582,20-05-20,22-05-20,York Teaching Hospital Nhs Foundation Trust,0,13,TAX,CLINICAL ALLIANCE APR 20,ZERO,251044,Renal - Medical Staffing,808500,B5 Qualified Nurse,1010,Consultant Recharge,6022,Rcb - York Hospitals Nhs Foundation Trust,Fully Paid,05-06-20
Harrogate and District NHS Other Foundation Trust BU,1010078820,6075582,20-05-20,22-05-20,York Teaching Hospital Nhs Foundation Trust,0,13,TAX,CLINICAL ALLIANCE APR 20,ZERO,259999,Default Value,156000,Vat Debtor < One Year,1000,Default Value,1000,Default Value,Fully Paid,05-06-20
Harrogate and District NHS Other Foundation Trust BU,1010078820,6075582,20-05-20,22-05-20,York Teaching Hospital Nhs Foundation Trust,0,13,TAX,CLINICAL ALLIANCE APR 20,ZERO,251044,Renal - Medical Staffing,813700,B7 Dietitian,2033,Professional & Technical,6022,Rcb - York Hospitals Nhs Foundation Trust,Fully Paid,05-06-20
Harrogate and District NHS Other Foundation Trust BU,1010078820,6075582,20-05-20,22-05-20,York Teaching Hospital Nhs Foundation Trust,0,13,TAX,CLINICAL ALLIANCE APR 20,ZERO,259999,Default Value,156000,Vat Debtor < One Year,1000,Default Value,1000,Default Value,Fully Paid,05-06-20
Harrogate and District NHS Other Foundation Trust BU,1010078820,6075582,20-05-20,22-05-20,York Teaching Hospital Nhs Foundation Trust,0,13,TAX,CLINICAL ALLIANCE APR 20,ZERO,251017,Oncology - Medical Staffing,802120,Consultant - Other Organisation Recharges,1010,Consultant Recharge,6022,Rcb - York Hospitals Nhs Foundation Trust,Fully Paid,05-06-20
Harrogate and District NHS Other Foundation Trust BU,1010078820,6075582,20-05-20,22-05-20,York Teaching Hospital Nhs Foundation Trust,0,13,TAX,CLINICAL ALLIANCE APR 20,ZERO,259999,Default Value,156000,Vat Debtor < One Year,1000,Default Value,1000,Default Value,Fully Paid,05-06-20
Harrogate and District NHS Other Foundation Trust BU,1010078820,6075582,20-05-20,22-05-20,York Teaching Hospital Nhs Foundation Trust,0,13,TAX,CLINICAL ALLIANCE APR 20,ZERO,251010,Ophthalmology - Medical Staffing,802120,Consultant - Other Organisation Recharges,1010,Consultant Recharge,6022,Rcb - York Hospitals Nhs Foundation Trust,Fully Paid,05-06-20
Harrogate and District NHS Other Foundation Trust BU,1010078823,6075577,20-05-20,22-05-20,York Teaching Hospital Nhs Foundation Trust,398,1,ITEM,CLINICAL ALLIANCE AUDIOLOGY MAY 20,,251703,Audiology,727000,Travel And Subsistence,1000,Default Value,6022,Rcb - York Hospitals Nhs Foundation Trust,Fully Paid,05-06-20
Harrogate and District NHS Other Foundation Trust BU,1010078823,6075577,20-05-20,22-05-20,York Teaching Hospital Nhs Foundation Trust,11860,2,ITEM,CLINICAL ALLIANCE AUDIOLOGY MAY 20,,251703,Audiology,824500,B5  Other Healthcare Scientist,1035,B5 Prof & Tech,6022,Rcb - York Hospitals Nhs Foundation Trust,Fully Paid,05-06-20
Harrogate and District NHS Other Foundation Trust BU,1010078823,6075577,20-05-20,22-05-20,York Teaching Hospital Nhs Foundation Trust,6009,3,ITEM,CLINICAL ALLIANCE AUDIOLOGY MAY 20,,251703,Audiology,824600,B6  Other Healthcare Scientist,1015,B6 Prof & Tech,6022,Rcb - York Hospitals Nhs Foundation Trust,Fully Paid,05-06-20
Harrogate and District NHS Other Foundation Trust BU,1010078823,6075577,20-05-20,22-05-20,York Teaching Hospital Nhs Foundation Trust,12107,4,ITEM,CLINICAL ALLIANCE AUDIOLOGY MAY 20,,251703,Audiology,824700,B7  Other Healthcare Scientist,1014,B7 Prof & Tech,6022,Rcb - York Hospitals Nhs Foundation Trust,Fully Paid,05-06-20
Harrogate and District NHS Other Foundation Trust BU,1010078823,6075577,20-05-20,22-05-20,York Teaching Hospital Nhs Foundation Trust,1325,5,ITEM,CLINICAL ALLIANCE AUDIOLOGY MAY 20,,251703,Audiology,824810,B8a  Other Healthcare Scientist,1000,Default Value,6022,Rcb - York Hospitals Nhs Foundation Trust,Fully Paid,05-06-20
Harrogate and District NHS Other Foundation Trust BU,1010078823,6075577,20-05-20,22-05-20,York Teaching Hospital Nhs Foundation Trust,4350,6,ITEM,CLINICAL ALLIANCE AUDIOLOGY MAY 20,,251703,Audiology,825200,B2 Admin & Clerical (Non Medical Non Clinical),1000,Default Value,6022,Rcb - York Hospitals Nhs Foundation Trust,Fully Paid,05-06-20
Harrogate and District NHS Other Foundation Trust BU,1010078823,6075577,20-05-20,22-05-20,York Teaching Hospital Nhs Foundation Trust,0,7,TAX,CLINICAL ALLIANCE AUDIOLOGY MAY 20,ZERO,251703,Audiology,825200,B2 Admin & Clerical (Non Medical Non Clinical),1000,Default Value,6022,Rcb - York Hospitals Nhs Foundation Trust,Fully Paid,05-06-20
Harrogate and District NHS Other Foundation Trust BU,1010078823,6075577,20-05-20,22-05-20,York Teaching Hospital Nhs Foundation Trust,0,7,TAX,CLINICAL ALLIANCE AUDIOLOGY MAY 20,ZERO,251703,Audiology,727000,Travel And Subsistence,1000,Default Value,6022,Rcb - York Hospitals Nhs Foundation Trust,Fully Paid,05-06-20
Harrogate and District NHS Other Foundation Trust BU,1010078823,6075577,20-05-20,22-05-20,York Teaching Hospital Nhs Foundation Trust,0,7,TAX,CLINICAL ALLIANCE AUDIOLOGY MAY 20,ZERO,259999,Default Value,156000,Vat Debtor < One Year,1000,Default Value,1000,Default Value,Fully Paid,05-06-20
Harrogate and District NHS Other Foundation Trust BU,1010078823,6075577,20-05-20,22-05-20,York Teaching Hospital Nhs Foundation Trust,0,7,TAX,CLINICAL ALLIANCE AUDIOLOGY MAY 20,ZERO,251703,Audiology,824500,B5  Other Healthcare Scientist,1035,B5 Prof & Tech,6022,Rcb - York Hospitals Nhs Foundation Trust,Fully Paid,05-06-20
Harrogate and District NHS Other Foundation Trust BU,1010078823,6075577,20-05-20,22-05-20,York Teaching Hospital Nhs Foundation Trust,0,7,TAX,CLINICAL ALLIANCE AUDIOLOGY MAY 20,ZERO,259999,Default Value,156000,Vat Debtor < One Year,1000,Default Value,1000,Default Value,Fully Paid,05-06-20
Harrogate and District NHS Other Foundation Trust BU,1010078823,6075577,20-05-20,22-05-20,York Teaching Hospital Nhs Foundation Trust,0,7,TAX,CLINICAL ALLIANCE AUDIOLOGY MAY 20,ZERO,251703,Audiology,824600,B6  Other Healthcare Scientist,1015,B6 Prof & Tech,6022,Rcb - York Hospitals Nhs Foundation Trust,Fully Paid,05-06-20
Harrogate and District NHS Other Foundation Trust BU,1010078823,6075577,20-05-20,22-05-20,York Teaching Hospital Nhs Foundation Trust,0,7,TAX,CLINICAL ALLIANCE AUDIOLOGY MAY 20,ZERO,259999,Default Value,156000,Vat Debtor < One Year,1000,Default Value,1000,Default Value,Fully Paid,05-06-20
Harrogate and District NHS Other Foundation Trust BU,1010078823,6075577,20-05-20,22-05-20,York Teaching Hospital Nhs Foundation Trust,0,7,TAX,CLINICAL ALLIANCE AUDIOLOGY MAY 20,ZERO,251703,Audiology,824700,B7  Other Healthcare Scientist,1014,B7 Prof & Tech,6022,Rcb - York Hospitals Nhs Foundation Trust,Fully Paid,05-06-20
Harrogate and District NHS Other Foundation Trust BU,1010078823,6075577,20-05-20,22-05-20,York Teaching Hospital Nhs Foundation Trust,0,7,TAX,CLINICAL ALLIANCE AUDIOLOGY MAY 20,ZERO,259999,Default Value,156000,Vat Debtor < One Year,1000,Default Value,1000,Default Value,Fully Paid,05-06-20
Harrogate and District NHS Other Foundation Trust BU,1010078823,6075577,20-05-20,22-05-20,York Teaching Hospital Nhs Foundation Trust,0,7,TAX,CLINICAL ALLIANCE AUDIOLOGY MAY 20,ZERO,251703,Audiology,824810,B8a  Other Healthcare Scientist,1000,Default Value,6022,Rcb - York Hospitals Nhs Foundation Trust,Fully Paid,05-06-20
Harrogate and District NHS Other Foundation Trust BU,1010078823,6075577,20-05-20,22-05-20,York Teaching Hospital Nhs Foundation Trust,0,7,TAX,CLINICAL ALLIANCE AUDIOLOGY MAY 20,ZERO,259999,Default Value,156000,Vat Debtor < One Year,1000,Default Value,1000,Default Value,Fully Paid,05-06-20
Harrogate and District NHS Other Foundation Trust BU,1010078823,6075577,20-05-20,22-05-20,York Teaching Hospital Nhs Foundation Trust,0,7,TAX,CLINICAL ALLIANCE AUDIOLOGY MAY 20,ZERO,259999,Default Value,156000,Vat Debtor < One Year,1000,Default Value,1000,Default Value,Fully Paid,05-06-20
Harrogate and District NHS Other Foundation Trust BU,1010078824,6075575,20-05-20,22-05-20,York Teaching Hospital Nhs Foundation Trust,17431,1,ITEM,CLINICAL ALLIANCE MAY 20,,251009,Ent - Medical Staffing,802120,Consultant - Other Organisation Recharges,1010,Consultant Recharge,6022,Rcb - York Hospitals Nhs Foundation Trust,Fully Paid,05-06-20
Harrogate and District NHS Other Foundation Trust BU,1010078824,6075575,20-05-20,22-05-20,York Teaching Hospital Nhs Foundation Trust,19862,2,ITEM,CLINICAL ALLIANCE MAY 20,,251009,Ent - Medical Staffing,802650,Specialty Doctors,1023,Staff Grade  Recharge,6022,Rcb - York Hospitals Nhs Foundation Trust,Fully Paid,05-06-20
Harrogate and District NHS Other Foundation Trust BU,1010078824,6075575,20-05-20,22-05-20,York Teaching Hospital Nhs Foundation Trust,15144,3,ITEM,CLINICAL ALLIANCE MAY 20,,251015,Maxillo Facial - Medical Staffing,802120,Consultant - Other Organisation Recharges,1010,Consultant Recharge,6022,Rcb - York Hospitals Nhs Foundation Trust,Fully Paid,05-06-20
Harrogate and District NHS Other Foundation Trust BU,1010078824,6075575,20-05-20,22-05-20,York Teaching Hospital Nhs Foundation Trust,8388,4,ITEM,CLINICAL ALLIANCE MAY 20,,251016,Orthodontics - Medical Staffing,802120,Consultant - Other Organisation Recharges,1010,Consultant Recharge,6022,Rcb - York Hospitals Nhs Foundation Trust,Fully Paid,05-06-20
Harrogate and District NHS Other Foundation Trust BU,1010078824,6075575,20-05-20,22-05-20,York Teaching Hospital Nhs Foundation Trust,6649,5,ITEM,CLINICAL ALLIANCE MAY 20,,251012,Gen Surgery - Medical Staffing,802120,Consultant - Other Organisation Recharges,1010,Consultant Recharge,6022,Rcb - York Hospitals Nhs Foundation Trust,Fully Paid,05-06-20
Harrogate and District NHS Other Foundation Trust BU,1010078824,6075575,20-05-20,22-05-20,York Teaching Hospital Nhs Foundation Trust,2463,6,ITEM,CLINICAL ALLIANCE MAY 20,,251012,Gen Surgery - Medical Staffing,807060,B6 Nurse Specialists,2032,Nursing,6022,Rcb - York Hospitals Nhs Foundation Trust,Fully Paid,05-06-20
Harrogate and District NHS Other Foundation Trust BU,1010078824,6075575,20-05-20,22-05-20,York Teaching Hospital Nhs Foundation Trust,2047,7,ITEM,CLINICAL ALLIANCE MAY 20,,251253,Admin Services - General Surgery,826010,B3 Medical Secretaries,2030,A&C,6022,Rcb - York Hospitals Nhs Foundation Trust,Fully Paid,05-06-20
Harrogate and District NHS Other Foundation Trust BU,1010078824,6075575,20-05-20,22-05-20,York Teaching Hospital Nhs Foundation Trust,16262,8,ITEM,CLINICAL ALLIANCE MAY 20,,251044,Renal - Medical Staffing,802120,Consultant - Other Organisation Recharges,1010,Consultant Recharge,6022,Rcb - York Hospitals Nhs Foundation Trust,Fully Paid,05-06-20
Harrogate and District NHS Other Foundation Trust BU,1010078824,6075575,20-05-20,22-05-20,York Teaching Hospital Nhs Foundation Trust,1698,9,ITEM,CLINICAL ALLIANCE MAY 20,,251044,Renal - Medical Staffing,808500,B5 Qualified Nurse,1010,Consultant Recharge,6022,Rcb - York Hospitals Nhs Foundation Trust,Fully Paid,05-06-20
Harrogate and District NHS Other Foundation Trust BU,1010078824,6075575,20-05-20,22-05-20,York Teaching Hospital Nhs Foundation Trust,2267,10,ITEM,CLINICAL ALLIANCE MAY 20,,251044,Renal - Medical Staffing,813700,B7 Dietitian,2033,Professional & Technical,6022,Rcb - York Hospitals Nhs Foundation Trust,Fully Paid,05-06-20
Harrogate and District NHS Other Foundation Trust BU,1010078824,6075575,20-05-20,22-05-20,York Teaching Hospital Nhs Foundation Trust,12247,11,ITEM,CLINICAL ALLIANCE MAY 20,,251017,Oncology - Medical Staffing,802120,Consultant - Other Organisation Recharges,1010,Consultant Recharge,6022,Rcb - York Hospitals Nhs Foundation Trust,Fully Paid,05-06-20
Harrogate and District NHS Other Foundation Trust BU,1010078824,6075575,20-05-20,22-05-20,York Teaching Hospital Nhs Foundation Trust,10650,12,ITEM,CLINICAL ALLIANCE MAY 20,,251010,Ophthalmology - Medical Staffing,802120,Consultant - Other Organisation Recharges,1010,Consultant Recharge,6022,Rcb - York Hospitals Nhs Foundation Trust,Fully Paid,05-06-20
Harrogate and District NHS Other Foundation Trust BU,1010078824,6075575,20-05-20,22-05-20,York Teaching Hospital Nhs Foundation Trust,0,13,TAX,CLINICAL ALLIANCE MAY 20,ZERO,259999,Default Value,156000,Vat Debtor < One Year,1000,Default Value,1000,Default Value,Fully Paid,05-06-20
Harrogate and District NHS Other Foundation Trust BU,1010078824,6075575,20-05-20,22-05-20,York Teaching Hospital Nhs Foundation Trust,0,13,TAX,CLINICAL ALLIANCE MAY 20,ZERO,251016,Orthodontics - Medical Staffing,802120,Consultant - Other Organisation Recharges,1010,Consultant Recharge,6022,Rcb - York Hospitals Nhs Foundation Trust,Fully Paid,05-06-20
Harrogate and District NHS Other Foundation Trust BU,1010078824,6075575,20-05-20,22-05-20,York Teaching Hospital Nhs Foundation Trust,0,13,TAX,CLINICAL ALLIANCE MAY 20,ZERO,259999,Default Value,156000,Vat Debtor < One Year,1000,Default Value,1000,Default Value,Fully Paid,05-06-20
Harrogate and District NHS Other Foundation Trust BU,1010078824,6075575,20-05-20,22-05-20,York Teaching Hospital Nhs Foundation Trust,0,13,TAX,CLINICAL ALLIANCE MAY 20,ZERO,259999,Default Value,156000,Vat Debtor < One Year,1000,Default Value,1000,Default Value,Fully Paid,05-06-20
Harrogate and District NHS Other Foundation Trust BU,1010078824,6075575,20-05-20,22-05-20,York Teaching Hospital Nhs Foundation Trust,0,13,TAX,CLINICAL ALLIANCE MAY 20,ZERO,251009,Ent - Medical Staffing,802650,Specialty Doctors,1023,Staff Grade  Recharge,6022,Rcb - York Hospitals Nhs Foundation Trust,Fully Paid,05-06-20
Harrogate and District NHS Other Foundation Trust BU,1010078824,6075575,20-05-20,22-05-20,York Teaching Hospital Nhs Foundation Trust,0,13,TAX,CLINICAL ALLIANCE MAY 20,ZERO,259999,Default Value,156000,Vat Debtor < One Year,1000,Default Value,1000,Default Value,Fully Paid,05-06-20
Harrogate and District NHS Other Foundation Trust BU,1010078824,6075575,20-05-20,22-05-20,York Teaching Hospital Nhs Foundation Trust,0,13,TAX,CLINICAL ALLIANCE MAY 20,ZERO,251009,Ent - Medical Staffing,802120,Consultant - Other Organisation Recharges,1010,Consultant Recharge,6022,Rcb - York Hospitals Nhs Foundation Trust,Fully Paid,05-06-20
Harrogate and District NHS Other Foundation Trust BU,1010078824,6075575,20-05-20,22-05-20,York Teaching Hospital Nhs Foundation Trust,0,13,TAX,CLINICAL ALLIANCE MAY 20,ZERO,259999,Default Value,156000,Vat Debtor < One Year,1000,Default Value,1000,Default Value,Fully Paid,05-06-20
Harrogate and District NHS Other Foundation Trust BU,1010078824,6075575,20-05-20,22-05-20,York Teaching Hospital Nhs Foundation Trust,0,13,TAX,CLINICAL ALLIANCE MAY 20,ZERO,251015,Maxillo Facial - Medical Staffing,802120,Consultant - Other Organisation Recharges,1010,Consultant Recharge,6022,Rcb - York Hospitals Nhs Foundation Trust,Fully Paid,05-06-20
Harrogate and District NHS Other Foundation Trust BU,1010078824,6075575,20-05-20,22-05-20,York Teaching Hospital Nhs Foundation Trust,0,13,TAX,CLINICAL ALLIANCE MAY 20,ZERO,251010,Ophthalmology - Medical Staffing,802120,Consultant - Other Organisation Recharges,1010,Consultant Recharge,6022,Rcb - York Hospitals Nhs Foundation Trust,Fully Paid,05-06-20
Harrogate and District NHS Other Foundation Trust BU,1010078824,6075575,20-05-20,22-05-20,York Teaching Hospital Nhs Foundation Trust,0,13,TAX,CLINICAL ALLIANCE MAY 20,ZERO,259999,Default Value,156000,Vat Debtor < One Year,1000,Default Value,1000,Default Value,Fully Paid,05-06-20
Harrogate and District NHS Other Foundation Trust BU,1010078824,6075575,20-05-20,22-05-20,York Teaching Hospital Nhs Foundation Trust,0,13,TAX,CLINICAL ALLIANCE MAY 20,ZERO,251017,Oncology - Medical Staffing,802120,Consultant - Other Organisation Recharges,1010,Consultant Recharge,6022,Rcb - York Hospitals Nhs Foundation Trust,Fully Paid,05-06-20
Harrogate and District NHS Other Foundation Trust BU,1010078824,6075575,20-05-20,22-05-20,York Teaching Hospital Nhs Foundation Trust,0,13,TAX,CLINICAL ALLIANCE MAY 20,ZERO,259999,Default Value,156000,Vat Debtor < One Year,1000,Default Value,1000,Default Value,Fully Paid,05-06-20
Harrogate and District NHS Other Foundation Trust BU,1010078824,6075575,20-05-20,22-05-20,York Teaching Hospital Nhs Foundation Trust,0,13,TAX,CLINICAL ALLIANCE MAY 20,ZERO,251044,Renal - Medical Staffing,813700,B7 Dietitian,2033,Professional & Technical,6022,Rcb - York Hospitals Nhs Foundation Trust,Fully Paid,05-06-20
Harrogate and District NHS Other Foundation Trust BU,1010078824,6075575,20-05-20,22-05-20,York Teaching Hospital Nhs Foundation Trust,0,13,TAX,CLINICAL ALLIANCE MAY 20,ZERO,259999,Default Value,156000,Vat Debtor < One Year,1000,Default Value,1000,Default Value,Fully Paid,05-06-20
Harrogate and District NHS Other Foundation Trust BU,1010078824,6075575,20-05-20,22-05-20,York Teaching Hospital Nhs Foundation Trust,0,13,TAX,CLINICAL ALLIANCE MAY 20,ZERO,251044,Renal - Medical Staffing,808500,B5 Qualified Nurse,1010,Consultant Recharge,6022,Rcb - York Hospitals Nhs Foundation Trust,Fully Paid,05-06-20
Harrogate and District NHS Other Foundation Trust BU,1010078824,6075575,20-05-20,22-05-20,York Teaching Hospital Nhs Foundation Trust,0,13,TAX,CLINICAL ALLIANCE MAY 20,ZERO,259999,Default Value,156000,Vat Debtor < One Year,1000,Default Value,1000,Default Value,Fully Paid,05-06-20
Harrogate and District NHS Other Foundation Trust BU,1010078824,6075575,20-05-20,22-05-20,York Teaching Hospital Nhs Foundation Trust,0,13,TAX,CLINICAL ALLIANCE MAY 20,ZERO,251044,Renal - Medical Staffing,802120,Consultant - Other Organisation Recharges,1010,Consultant Recharge,6022,Rcb - York Hospitals Nhs Foundation Trust,Fully Paid,05-06-20
Harrogate and District NHS Other Foundation Trust BU,1010078824,6075575,20-05-20,22-05-20,York Teaching Hospital Nhs Foundation Trust,0,13,TAX,CLINICAL ALLIANCE MAY 20,ZERO,259999,Default Value,156000,Vat Debtor < One Year,1000,Default Value,1000,Default Value,Fully Paid,05-06-20
Harrogate and District NHS Other Foundation Trust BU,1010078824,6075575,20-05-20,22-05-20,York Teaching Hospital Nhs Foundation Trust,0,13,TAX,CLINICAL ALLIANCE MAY 20,ZERO,251253,Admin Services - General Surgery,826010,B3 Medical Secretaries,2030,A&C,6022,Rcb - York Hospitals Nhs Foundation Trust,Fully Paid,05-06-20
Harrogate and District NHS Other Foundation Trust BU,1010078824,6075575,20-05-20,22-05-20,York Teaching Hospital Nhs Foundation Trust,0,13,TAX,CLINICAL ALLIANCE MAY 20,ZERO,259999,Default Value,156000,Vat Debtor < One Year,1000,Default Value,1000,Default Value,Fully Paid,05-06-20
Harrogate and District NHS Other Foundation Trust BU,1010078824,6075575,20-05-20,22-05-20,York Teaching Hospital Nhs Foundation Trust,0,13,TAX,CLINICAL ALLIANCE MAY 20,ZERO,251012,Gen Surgery - Medical Staffing,802120,Consultant - Other Organisation Recharges,1010,Consultant Recharge,6022,Rcb - York Hospitals Nhs Foundation Trust,Fully Paid,05-06-20
Harrogate and District NHS Other Foundation Trust BU,1010078824,6075575,20-05-20,22-05-20,York Teaching Hospital Nhs Foundation Trust,0,13,TAX,CLINICAL ALLIANCE MAY 20,ZERO,259999,Default Value,156000,Vat Debtor < One Year,1000,Default Value,1000,Default Value,Fully Paid,05-06-20
Harrogate and District NHS Other Foundation Trust BU,1010078824,6075575,20-05-20,22-05-20,York Teaching Hospital Nhs Foundation Trust,0,13,TAX,CLINICAL ALLIANCE MAY 20,ZERO,251012,Gen Surgery - Medical Staffing,807060,B6 Nurse Specialists,2032,Nursing,6022,Rcb - York Hospitals Nhs Foundation Trust,Fully Paid,05-06-20
Harrogate and District NHS Other Foundation Trust BU,1010079076,6077553,10-06-20,10-06-20,York Teaching Hospital Nhs Foundation Trust,18897,1,ITEM,JUN 20 SALARY  RECHARGE,,251009,Ent - Medical Staffing,802120,Consultant - Other Organisation Recharges,1010,Consultant Recharge,6022,Rcb - York Hospitals Nhs Foundation Trust,Fully Paid,19-06-20
Harrogate and District NHS Other Foundation Trust BU,1010079076,6077553,10-06-20,10-06-20,York Teaching Hospital Nhs Foundation Trust,18957,2,ITEM,JUN 20 SALARY  RECHARGE,,251009,Ent - Medical Staffing,802650,Specialty Doctors,1023,Staff Grade  Recharge,6022,Rcb - York Hospitals Nhs Foundation Trust,Fully Paid,19-06-20
Harrogate and District NHS Other Foundation Trust BU,1010079076,6077553,10-06-20,10-06-20,York Teaching Hospital Nhs Foundation Trust,14021,3,ITEM,JUN 20 SALARY  RECHARGE,,251015,Maxillo Facial - Medical Staffing,802120,Consultant - Other Organisation Recharges,1010,Consultant Recharge,6022,Rcb - York Hospitals Nhs Foundation Trust,Fully Paid,19-06-20
Harrogate and District NHS Other Foundation Trust BU,1010079076,6077553,10-06-20,10-06-20,York Teaching Hospital Nhs Foundation Trust,8768,4,ITEM,JUN 20 SALARY  RECHARGE,,251016,Orthodontics - Medical Staffing,802120,Consultant - Other Organisation Recharges,1010,Consultant Recharge,6022,Rcb - York Hospitals Nhs Foundation Trust,Fully Paid,19-06-20
Harrogate and District NHS Other Foundation Trust BU,1010079076,6077553,10-06-20,10-06-20,York Teaching Hospital Nhs Foundation Trust,6706,5,ITEM,JUN 20 SALARY  RECHARGE,,251012,Gen Surgery - Medical Staffing,802120,Consultant - Other Organisation Recharges,1010,Consultant Recharge,6022,Rcb - York Hospitals Nhs Foundation Trust,Fully Paid,19-06-20
Harrogate and District NHS Other Foundation Trust BU,1010079076,6077553,10-06-20,10-06-20,York Teaching Hospital Nhs Foundation Trust,2532,6,ITEM,JUN 20 SALARY  RECHARGE,,251012,Gen Surgery - Medical Staffing,807060,B6 Nurse Specialists,2032,Nursing,6022,Rcb - York Hospitals Nhs Foundation Trust,Fully Paid,19-06-20
Harrogate and District NHS Other Foundation Trust BU,1010079076,6077553,10-06-20,10-06-20,York Teaching Hospital Nhs Foundation Trust,2076,7,ITEM,JUN 20 SALARY  RECHARGE,,251253,Admin Services - General Surgery,826010,B3 Medical Secretaries,2030,A&C,6022,Rcb - York Hospitals Nhs Foundation Trust,Fully Paid,19-06-20
Harrogate and District NHS Other Foundation Trust BU,1010079076,6077553,10-06-20,10-06-20,York Teaching Hospital Nhs Foundation Trust,16487,8,ITEM,JUN 20 SALARY  RECHARGE,,251044,Renal - Medical Staffing,802120,Consultant - Other Organisation Recharges,1010,Consultant Recharge,6022,Rcb - York Hospitals Nhs Foundation Trust,Fully Paid,19-06-20
Harrogate and District NHS Other Foundation Trust BU,1010079076,6077553,10-06-20,10-06-20,York Teaching Hospital Nhs Foundation Trust,1721,9,ITEM,JUN 20 SALARY  RECHARGE,,251044,Renal - Medical Staffing,808600,B6 Qualified Nurse,1010,Consultant Recharge,6022,Rcb - York Hospitals Nhs Foundation Trust,Fully Paid,19-06-20
Harrogate and District NHS Other Foundation Trust BU,1010079076,6077553,10-06-20,10-06-20,York Teaching Hospital Nhs Foundation Trust,2299,10,ITEM,JUN 20 SALARY  RECHARGE,,251044,Renal - Medical Staffing,813700,B7 Dietitian,2033,Professional & Technical,6022,Rcb - York Hospitals Nhs Foundation Trust,Fully Paid,19-06-20
Harrogate and District NHS Other Foundation Trust BU,1010079076,6077553,10-06-20,10-06-20,York Teaching Hospital Nhs Foundation Trust,12415,11,ITEM,JUN 20 SALARY  RECHARGE,,251017,Oncology - Medical Staffing,802120,Consultant - Other Organisation Recharges,1010,Consultant Recharge,6022,Rcb - York Hospitals Nhs Foundation Trust,Fully Paid,19-06-20
Harrogate and District NHS Other Foundation Trust BU,1010079076,6077553,10-06-20,10-06-20,York Teaching Hospital Nhs Foundation Trust,10796,12,ITEM,JUN 20 SALARY  RECHARGE,,251010,Ophthalmology - Medical Staffing,802120,Consultant - Other Organisation Recharges,1010,Consultant Recharge,6022,Rcb - York Hospitals Nhs Foundation Trust,Fully Paid,19-06-20
Harrogate and District NHS Other Foundation Trust BU,1010079076,6077553,10-06-20,10-06-20,York Teaching Hospital Nhs Foundation Trust,0,13,TAX,JUN 20 SALARY  RECHARGE,ZERO,251253,Admin Services - General Surgery,826010,B3 Medical Secretaries,2030,A&C,6022,Rcb - York Hospitals Nhs Foundation Trust,Fully Paid,19-06-20
Harrogate and District NHS Other Foundation Trust BU,1010079076,6077553,10-06-20,10-06-20,York Teaching Hospital Nhs Foundation Trust,0,13,TAX,JUN 20 SALARY  RECHARGE,ZERO,259999,Default Value,156000,Vat Debtor < One Year,1000,Default Value,1000,Default Value,Fully Paid,19-06-20
Harrogate and District NHS Other Foundation Trust BU,1010079076,6077553,10-06-20,10-06-20,York Teaching Hospital Nhs Foundation Trust,0,13,TAX,JUN 20 SALARY  RECHARGE,ZERO,251044,Renal - Medical Staffing,802120,Consultant - Other Organisation Recharges,1010,Consultant Recharge,6022,Rcb - York Hospitals Nhs Foundation Trust,Fully Paid,19-06-20
Harrogate and District NHS Other Foundation Trust BU,1010079076,6077553,10-06-20,10-06-20,York Teaching Hospital Nhs Foundation Trust,0,13,TAX,JUN 20 SALARY  RECHARGE,ZERO,259999,Default Value,156000,Vat Debtor < One Year,1000,Default Value,1000,Default Value,Fully Paid,19-06-20
Harrogate and District NHS Other Foundation Trust BU,1010079076,6077553,10-06-20,10-06-20,York Teaching Hospital Nhs Foundation Trust,0,13,TAX,JUN 20 SALARY  RECHARGE,ZERO,251044,Renal - Medical Staffing,808600,B6 Qualified Nurse,1010,Consultant Recharge,6022,Rcb - York Hospitals Nhs Foundation Trust,Fully Paid,19-06-20
Harrogate and District NHS Other Foundation Trust BU,1010079076,6077553,10-06-20,10-06-20,York Teaching Hospital Nhs Foundation Trust,0,13,TAX,JUN 20 SALARY  RECHARGE,ZERO,259999,Default Value,156000,Vat Debtor < One Year,1000,Default Value,1000,Default Value,Fully Paid,19-06-20
Harrogate and District NHS Other Foundation Trust BU,1010079076,6077553,10-06-20,10-06-20,York Teaching Hospital Nhs Foundation Trust,0,13,TAX,JUN 20 SALARY  RECHARGE,ZERO,251044,Renal - Medical Staffing,813700,B7 Dietitian,2033,Professional & Technical,6022,Rcb - York Hospitals Nhs Foundation Trust,Fully Paid,19-06-20
Harrogate and District NHS Other Foundation Trust BU,1010079076,6077553,10-06-20,10-06-20,York Teaching Hospital Nhs Foundation Trust,0,13,TAX,JUN 20 SALARY  RECHARGE,ZERO,259999,Default Value,156000,Vat Debtor < One Year,1000,Default Value,1000,Default Value,Fully Paid,19-06-20
Harrogate and District NHS Other Foundation Trust BU,1010079076,6077553,10-06-20,10-06-20,York Teaching Hospital Nhs Foundation Trust,0,13,TAX,JUN 20 SALARY  RECHARGE,ZERO,251017,Oncology - Medical Staffing,802120,Consultant - Other Organisation Recharges,1010,Consultant Recharge,6022,Rcb - York Hospitals Nhs Foundation Trust,Fully Paid,19-06-20
Harrogate and District NHS Other Foundation Trust BU,1010079076,6077553,10-06-20,10-06-20,York Teaching Hospital Nhs Foundation Trust,0,13,TAX,JUN 20 SALARY  RECHARGE,ZERO,259999,Default Value,156000,Vat Debtor < One Year,1000,Default Value,1000,Default Value,Fully Paid,19-06-20
Harrogate and District NHS Other Foundation Trust BU,1010079076,6077553,10-06-20,10-06-20,York Teaching Hospital Nhs Foundation Trust,0,13,TAX,JUN 20 SALARY  RECHARGE,ZERO,259999,Default Value,156000,Vat Debtor < One Year,1000,Default Value,1000,Default Value,Fully Paid,19-06-20
Harrogate and District NHS Other Foundation Trust BU,1010079076,6077553,10-06-20,10-06-20,York Teaching Hospital Nhs Foundation Trust,0,13,TAX,JUN 20 SALARY  RECHARGE,ZERO,251012,Gen Surgery - Medical Staffing,807060,B6 Nurse Specialists,2032,Nursing,6022,Rcb - York Hospitals Nhs Foundation Trust,Fully Paid,19-06-20
Harrogate and District NHS Other Foundation Trust BU,1010079076,6077553,10-06-20,10-06-20,York Teaching Hospital Nhs Foundation Trust,0,13,TAX,JUN 20 SALARY  RECHARGE,ZERO,259999,Default Value,156000,Vat Debtor < One Year,1000,Default Value,1000,Default Value,Fully Paid,19-06-20
Harrogate and District NHS Other Foundation Trust BU,1010079076,6077553,10-06-20,10-06-20,York Teaching Hospital Nhs Foundation Trust,0,13,TAX,JUN 20 SALARY  RECHARGE,ZERO,251012,Gen Surgery - Medical Staffing,802120,Consultant - Other Organisation Recharges,1010,Consultant Recharge,6022,Rcb - York Hospitals Nhs Foundation Trust,Fully Paid,19-06-20
Harrogate and District NHS Other Foundation Trust BU,1010079076,6077553,10-06-20,10-06-20,York Teaching Hospital Nhs Foundation Trust,0,13,TAX,JUN 20 SALARY  RECHARGE,ZERO,259999,Default Value,156000,Vat Debtor < One Year,1000,Default Value,1000,Default Value,Fully Paid,19-06-20
Harrogate and District NHS Other Foundation Trust BU,1010079076,6077553,10-06-20,10-06-20,York Teaching Hospital Nhs Foundation Trust,0,13,TAX,JUN 20 SALARY  RECHARGE,ZERO,251016,Orthodontics - Medical Staffing,802120,Consultant - Other Organisation Recharges,1010,Consultant Recharge,6022,Rcb - York Hospitals Nhs Foundation Trust,Fully Paid,19-06-20
Harrogate and District NHS Other Foundation Trust BU,1010079076,6077553,10-06-20,10-06-20,York Teaching Hospital Nhs Foundation Trust,0,13,TAX,JUN 20 SALARY  RECHARGE,ZERO,259999,Default Value,156000,Vat Debtor < One Year,1000,Default Value,1000,Default Value,Fully Paid,19-06-20
Harrogate and District NHS Other Foundation Trust BU,1010079076,6077553,10-06-20,10-06-20,York Teaching Hospital Nhs Foundation Trust,0,13,TAX,JUN 20 SALARY  RECHARGE,ZERO,251015,Maxillo Facial - Medical Staffing,802120,Consultant - Other Organisation Recharges,1010,Consultant Recharge,6022,Rcb - York Hospitals Nhs Foundation Trust,Fully Paid,19-06-20
Harrogate and District NHS Other Foundation Trust BU,1010079076,6077553,10-06-20,10-06-20,York Teaching Hospital Nhs Foundation Trust,0,13,TAX,JUN 20 SALARY  RECHARGE,ZERO,251009,Ent - Medical Staffing,802650,Specialty Doctors,1023,Staff Grade  Recharge,6022,Rcb - York Hospitals Nhs Foundation Trust,Fully Paid,19-06-20
Harrogate and District NHS Other Foundation Trust BU,1010079076,6077553,10-06-20,10-06-20,York Teaching Hospital Nhs Foundation Trust,0,13,TAX,JUN 20 SALARY  RECHARGE,ZERO,259999,Default Value,156000,Vat Debtor < One Year,1000,Default Value,1000,Default Value,Fully Paid,19-06-20
Harrogate and District NHS Other Foundation Trust BU,1010079076,6077553,10-06-20,10-06-20,York Teaching Hospital Nhs Foundation Trust,0,13,TAX,JUN 20 SALARY  RECHARGE,ZERO,251010,Ophthalmology - Medical Staffing,802120,Consultant - Other Organisation Recharges,1010,Consultant Recharge,6022,Rcb - York Hospitals Nhs Foundation Trust,Fully Paid,19-06-20
Harrogate and District NHS Other Foundation Trust BU,1010079076,6077553,10-06-20,10-06-20,York Teaching Hospital Nhs Foundation Trust,0,13,TAX,JUN 20 SALARY  RECHARGE,ZERO,259999,Default Value,156000,Vat Debtor < One Year,1000,Default Value,1000,Default Value,Fully Paid,19-06-20
Harrogate and District NHS Other Foundation Trust BU,1010079076,6077553,10-06-20,10-06-20,York Teaching Hospital Nhs Foundation Trust,0,13,TAX,JUN 20 SALARY  RECHARGE,ZERO,251009,Ent - Medical Staffing,802120,Consultant - Other Organisation Recharges,1010,Consultant Recharge,6022,Rcb - York Hospitals Nhs Foundation Trust,Fully Paid,19-06-20
Harrogate and District NHS Other Foundation Trust BU,1010079076,6077553,10-06-20,10-06-20,York Teaching Hospital Nhs Foundation Trust,0,13,TAX,JUN 20 SALARY  RECHARGE,ZERO,259999,Default Value,156000,Vat Debtor < One Year,1000,Default Value,1000,Default Value,Fully Paid,19-06-20
Harrogate and District NHS Other Foundation Trust BU,1010079078,6077555,10-06-20,10-06-20,York Teaching Hospital Nhs Foundation Trust,3626,1,ITEM,JUN4 20 AUDIOLOGY,,251703,Audiology,825200,B2 Admin & Clerical (Non Medical Non Clinical),1000,Default Value,6022,Rcb - York Hospitals Nhs Foundation Trust,Fully Paid,19-06-20
Harrogate and District NHS Other Foundation Trust BU,1010079078,6077555,10-06-20,10-06-20,York Teaching Hospital Nhs Foundation Trust,11087.15,2,ITEM,JUN4 20 AUDIOLOGY,,251703,Audiology,824500,B5  Other Healthcare Scientist,1035,B5 Prof & Tech,6022,Rcb - York Hospitals Nhs Foundation Trust,Fully Paid,19-06-20
Harrogate and District NHS Other Foundation Trust BU,1010079078,6077555,10-06-20,10-06-20,York Teaching Hospital Nhs Foundation Trust,12781.21,3,ITEM,JUN4 20 AUDIOLOGY,,251703,Audiology,824700,B7  Other Healthcare Scientist,1014,B7 Prof & Tech,6022,Rcb - York Hospitals Nhs Foundation Trust,Fully Paid,19-06-20
Harrogate and District NHS Other Foundation Trust BU,1010079078,6077555,10-06-20,10-06-20,York Teaching Hospital Nhs Foundation Trust,7280.81,4,ITEM,JUN4 20 AUDIOLOGY,,251703,Audiology,824600,B6  Other Healthcare Scientist,1015,B6 Prof & Tech,6022,Rcb - York Hospitals Nhs Foundation Trust,Fully Paid,19-06-20
Harrogate and District NHS Other Foundation Trust BU,1010079078,6077555,10-06-20,10-06-20,York Teaching Hospital Nhs Foundation Trust,1362.19,5,ITEM,JUN4 20 AUDIOLOGY,,251703,Audiology,824810,B8a  Other Healthcare Scientist,1000,Default Value,6022,Rcb - York Hospitals Nhs Foundation Trust,Fully Paid,19-06-20
Harrogate and District NHS Other Foundation Trust BU,1010079078,6077555,10-06-20,10-06-20,York Teaching Hospital Nhs Foundation Trust,409.64,6,ITEM,JUN4 20 AUDIOLOGY,,251703,Audiology,727000,Travel And Subsistence,1000,Default Value,6022,Rcb - York Hospitals Nhs Foundation Trust,Fully Paid,19-06-20
Harrogate and District NHS Other Foundation Trust BU,1010079078,6077555,10-06-20,10-06-20,York Teaching Hospital Nhs Foundation Trust,0,7,TAX,JUN4 20 AUDIOLOGY,ZERO,259999,Default Value,156000,Vat Debtor < One Year,1000,Default Value,1000,Default Value,Fully Paid,19-06-20
Harrogate and District NHS Other Foundation Trust BU,1010079078,6077555,10-06-20,10-06-20,York Teaching Hospital Nhs Foundation Trust,0,7,TAX,JUN4 20 AUDIOLOGY,ZERO,251703,Audiology,824810,B8a  Other Healthcare Scientist,1000,Default Value,6022,Rcb - York Hospitals Nhs Foundation Trust,Fully Paid,19-06-20
Harrogate and District NHS Other Foundation Trust BU,1010079078,6077555,10-06-20,10-06-20,York Teaching Hospital Nhs Foundation Trust,0,7,TAX,JUN4 20 AUDIOLOGY,ZERO,259999,Default Value,156000,Vat Debtor < One Year,1000,Default Value,1000,Default Value,Fully Paid,19-06-20
Harrogate and District NHS Other Foundation Trust BU,1010079078,6077555,10-06-20,10-06-20,York Teaching Hospital Nhs Foundation Trust,0,7,TAX,JUN4 20 AUDIOLOGY,ZERO,251703,Audiology,727000,Travel And Subsistence,1000,Default Value,6022,Rcb - York Hospitals Nhs Foundation Trust,Fully Paid,19-06-20
Harrogate and District NHS Other Foundation Trust BU,1010079078,6077555,10-06-20,10-06-20,York Teaching Hospital Nhs Foundation Trust,0,7,TAX,JUN4 20 AUDIOLOGY,ZERO,251703,Audiology,825200,B2 Admin & Clerical (Non Medical Non Clinical),1000,Default Value,6022,Rcb - York Hospitals Nhs Foundation Trust,Fully Paid,19-06-20
Harrogate and District NHS Other Foundation Trust BU,1010079078,6077555,10-06-20,10-06-20,York Teaching Hospital Nhs Foundation Trust,0,7,TAX,JUN4 20 AUDIOLOGY,ZERO,251703,Audiology,824600,B6  Other Healthcare Scientist,1015,B6 Prof & Tech,6022,Rcb - York Hospitals Nhs Foundation Trust,Fully Paid,19-06-20
Harrogate and District NHS Other Foundation Trust BU,1010079078,6077555,10-06-20,10-06-20,York Teaching Hospital Nhs Foundation Trust,0,7,TAX,JUN4 20 AUDIOLOGY,ZERO,259999,Default Value,156000,Vat Debtor < One Year,1000,Default Value,1000,Default Value,Fully Paid,19-06-20
Harrogate and District NHS Other Foundation Trust BU,1010079078,6077555,10-06-20,10-06-20,York Teaching Hospital Nhs Foundation Trust,0,7,TAX,JUN4 20 AUDIOLOGY,ZERO,251703,Audiology,824700,B7  Other Healthcare Scientist,1014,B7 Prof & Tech,6022,Rcb - York Hospitals Nhs Foundation Trust,Fully Paid,19-06-20
Harrogate and District NHS Other Foundation Trust BU,1010079078,6077555,10-06-20,10-06-20,York Teaching Hospital Nhs Foundation Trust,0,7,TAX,JUN4 20 AUDIOLOGY,ZERO,259999,Default Value,156000,Vat Debtor < One Year,1000,Default Value,1000,Default Value,Fully Paid,19-06-20
Harrogate and District NHS Other Foundation Trust BU,1010079078,6077555,10-06-20,10-06-20,York Teaching Hospital Nhs Foundation Trust,0,7,TAX,JUN4 20 AUDIOLOGY,ZERO,259999,Default Value,156000,Vat Debtor < One Year,1000,Default Value,1000,Default Value,Fully Paid,19-06-20
Harrogate and District NHS Other Foundation Trust BU,1010079078,6077555,10-06-20,10-06-20,York Teaching Hospital Nhs Foundation Trust,0,7,TAX,JUN4 20 AUDIOLOGY,ZERO,259999,Default Value,156000,Vat Debtor < One Year,1000,Default Value,1000,Default Value,Fully Paid,19-06-20
Harrogate and District NHS Other Foundation Trust BU,1010079078,6077555,10-06-20,10-06-20,York Teaching Hospital Nhs Foundation Trust,0,7,TAX,JUN4 20 AUDIOLOGY,ZERO,251703,Audiology,824500,B5  Other Healthcare Scientist,1035,B5 Prof & Tech,6022,Rcb - York Hospitals Nhs Foundation Trust,Fully Paid,19-06-20
Harrogate and District NHS Other Foundation Trust BU,1121026786,6074963,15-05-20,18-05-20,NHS Supply Chain Co-ordination Limited,41542.35,1,ITEM,,,259581,Resus Creditors,228000,Non- NHS  Trade Creditors < One Year,1000,Default Value,1000,Default Value,Fully Paid,05-06-20
Harrogate and District NHS Other Foundation Trust BU,1121026786,6074963,15-05-20,18-05-20,NHS Supply Chain Co-ordination Limited,352.86,2,ITEM,,,259581,Resus Creditors,228000,Non- NHS  Trade Creditors < One Year,1000,Default Value,1000,Default Value,Fully Paid,05-06-20
Harrogate and District NHS Other Foundation Trust BU,1121026786,6074963,15-05-20,18-05-20,NHS Supply Chain Co-ordination Limited,0,3,TAX,NEP VAT REGIME - VAT TAX,ZERO,259999,Default Value,156000,Vat Debtor < One Year,1000,Default Value,1000,Default Value,Fully Paid,05-06-20
Harrogate and District NHS Other Foundation Trust BU,1121026786,6074963,15-05-20,18-05-20,NHS Supply Chain Co-ordination Limited,0,3,TAX,NEP VAT REGIME - VAT TAX,ZERO,259581,Resus Creditors,228000,Non- NHS  Trade Creditors < One Year,1000,Default Value,1000,Default Value,Fully Paid,05-06-20
Harrogate and District NHS Other Foundation Trust BU,1121026786,6074963,15-05-20,18-05-20,NHS Supply Chain Co-ordination Limited,0,4,TAX,NEP VAT REGIME - VAT TAX,STD,259999,Default Value,156000,Vat Debtor < One Year,1000,Default Value,1000,Default Value,Fully Paid,05-06-20
Harrogate and District NHS Other Foundation Trust BU,1121026786,6074963,15-05-20,18-05-20,NHS Supply Chain Co-ordination Limited,8308.47,4,TAX,NEP VAT REGIME - VAT TAX,STD,259581,Resus Creditors,228000,Non- NHS  Trade Creditors < One Year,1000,Default Value,1000,Default Value,Fully Paid,05-06-20
Harrogate and District NHS Other Foundation Trust BU,1121030809,6075847,22-05-20,26-05-20,NHS Supply Chain Co-ordination Limited,53156.9,1,ITEM,NHS PRODUCT SALE SUMMARY,,259581,Resus Creditors,228000,Non- NHS  Trade Creditors < One Year,1000,Default Value,1000,Default Value,Fully Paid,05-06-20
Harrogate and District NHS Other Foundation Trust BU,1121030809,6075847,22-05-20,26-05-20,NHS Supply Chain Co-ordination Limited,25.42,2,ITEM,NHS PRODUCT SALE SUMMARY,,259581,Resus Creditors,228000,Non- NHS  Trade Creditors < One Year,1000,Default Value,1000,Default Value,Fully Paid,05-06-20
Harrogate and District NHS Other Foundation Trust BU,1121030809,6075847,22-05-20,26-05-20,NHS Supply Chain Co-ordination Limited,390.61,3,ITEM,NHS PRODUCT SALE SUMMARY,,259581,Resus Creditors,228000,Non- NHS  Trade Creditors < One Year,1000,Default Value,1000,Default Value,Fully Paid,05-06-20
Harrogate and District NHS Other Foundation Trust BU,1121030809,6075847,22-05-20,26-05-20,NHS Supply Chain Co-ordination Limited,0,4,TAX,NHS PRODUCT SALE SUMMARY,5,259999,Default Value,156000,Vat Debtor < One Year,1000,Default Value,1000,Default Value,Fully Paid,05-06-20
Harrogate and District NHS Other Foundation Trust BU,1121030809,6075847,22-05-20,26-05-20,NHS Supply Chain Co-ordination Limited,1.28,4,TAX,NHS PRODUCT SALE SUMMARY,5,259581,Resus Creditors,228000,Non- NHS  Trade Creditors < One Year,1000,Default Value,1000,Default Value,Fully Paid,05-06-20
Harrogate and District NHS Other Foundation Trust BU,1121030809,6075847,22-05-20,26-05-20,NHS Supply Chain Co-ordination Limited,0,5,TAX,NHS PRODUCT SALE SUMMARY,STD,259999,Default Value,156000,Vat Debtor < One Year,1000,Default Value,1000,Default Value,Fully Paid,05-06-20
Harrogate and District NHS Other Foundation Trust BU,1121030809,6075847,22-05-20,26-05-20,NHS Supply Chain Co-ordination Limited,10631.38,5,TAX,NHS PRODUCT SALE SUMMARY,STD,259581,Resus Creditors,228000,Non- NHS  Trade Creditors < One Year,1000,Default Value,1000,Default Value,Fully Paid,05-06-20
Harrogate and District NHS Other Foundation Trust BU,1121030809,6075847,22-05-20,26-05-20,NHS Supply Chain Co-ordination Limited,0,6,TAX,NHS PRODUCT SALE SUMMARY,ZERO,259999,Default Value,156000,Vat Debtor < One Year,1000,Default Value,1000,Default Value,Fully Paid,05-06-20
Harrogate and District NHS Other Foundation Trust BU,1121030809,6075847,22-05-20,26-05-20,NHS Supply Chain Co-ordination Limited,0,6,TAX,NHS PRODUCT SALE SUMMARY,ZERO,259581,Resus Creditors,228000,Non- NHS  Trade Creditors < One Year,1000,Default Value,1000,Default Value,Fully Paid,05-06-20
Harrogate and District NHS Other Foundation Trust BU,1121034839,6076689,29-05-20,03-06-20,NHS Supply Chain Co-ordination Limited,35246.25,1,ITEM,PRODUCT SALES,,259581,Resus Creditors,228000,Non- NHS  Trade Creditors < One Year,1000,Default Value,1000,Default Value,Fully Paid,12-06-20
Harrogate and District NHS Other Foundation Trust BU,1121034839,6076689,29-05-20,03-06-20,NHS Supply Chain Co-ordination Limited,60.04,2,ITEM,PRODUCT SALES,,259581,Resus Creditors,228000,Non- NHS  Trade Creditors < One Year,1000,Default Value,1000,Default Value,Fully Paid,12-06-20
Harrogate and District NHS Other Foundation Trust BU,1121034839,6076689,29-05-20,03-06-20,NHS Supply Chain Co-ordination Limited,497.5,3,ITEM,PRODUCT SALES,,259581,Resus Creditors,228000,Non- NHS  Trade Creditors < One Year,1000,Default Value,1000,Default Value,Fully Paid,12-06-20
Harrogate and District NHS Other Foundation Trust BU,1121034839,6076689,29-05-20,03-06-20,NHS Supply Chain Co-ordination Limited,0,4,TAX,PRODUCT SALES,STD,259999,Default Value,156000,Vat Debtor < One Year,1000,Default Value,1000,Default Value,Fully Paid,12-06-20
Harrogate and District NHS Other Foundation Trust BU,1121034839,6076689,29-05-20,03-06-20,NHS Supply Chain Co-ordination Limited,7049.25,4,TAX,PRODUCT SALES,STD,259581,Resus Creditors,228000,Non- NHS  Trade Creditors < One Year,1000,Default Value,1000,Default Value,Fully Paid,12-06-20
Harrogate and District NHS Other Foundation Trust BU,1121034839,6076689,29-05-20,03-06-20,NHS Supply Chain Co-ordination Limited,0,5,TAX,PRODUCT SALES,ZERO,259999,Default Value,156000,Vat Debtor < One Year,1000,Default Value,1000,Default Value,Fully Paid,12-06-20
Harrogate and District NHS Other Foundation Trust BU,1121034839,6076689,29-05-20,03-06-20,NHS Supply Chain Co-ordination Limited,0,5,TAX,PRODUCT SALES,ZERO,259581,Resus Creditors,228000,Non- NHS  Trade Creditors < One Year,1000,Default Value,1000,Default Value,Fully Paid,12-06-20
Harrogate and District NHS Other Foundation Trust BU,1121034839,6076689,29-05-20,03-06-20,NHS Supply Chain Co-ordination Limited,3,6,TAX,PRODUCT SALES,5,259581,Resus Creditors,228000,Non- NHS  Trade Creditors < One Year,1000,Default Value,1000,Default Value,Fully Paid,12-06-20
Harrogate and District NHS Other Foundation Trust BU,1121034839,6076689,29-05-20,03-06-20,NHS Supply Chain Co-ordination Limited,0,6,TAX,PRODUCT SALES,5,259999,Default Value,156000,Vat Debtor < One Year,1000,Default Value,1000,Default Value,Fully Paid,12-06-20
Harrogate and District NHS Other Foundation Trust BU,1121038006,6077607,05-06-20,11-06-20,NHS Supply Chain Co-ordination Limited,63656.3,1,ITEM,PRODUCT SALES,,259581,Resus Creditors,228000,Non- NHS  Trade Creditors < One Year,1000,Default Value,1000,Default Value,Fully Paid,19-06-20
Harrogate and District NHS Other Foundation Trust BU,1121038006,6077607,05-06-20,11-06-20,NHS Supply Chain Co-ordination Limited,20.64,2,ITEM,PRODUCT SALES,,259581,Resus Creditors,228000,Non- NHS  Trade Creditors < One Year,1000,Default Value,1000,Default Value,Fully Paid,19-06-20
Harrogate and District NHS Other Foundation Trust BU,1121038006,6077607,05-06-20,11-06-20,NHS Supply Chain Co-ordination Limited,1242.91,3,ITEM,PRODUCT SALES,,259581,Resus Creditors,228000,Non- NHS  Trade Creditors < One Year,1000,Default Value,1000,Default Value,Fully Paid,19-06-20
Harrogate and District NHS Other Foundation Trust BU,1121038006,6077607,05-06-20,11-06-20,NHS Supply Chain Co-ordination Limited,0,4,TAX,PRODUCT SALES,ZERO,259999,Default Value,156000,Vat Debtor < One Year,1000,Default Value,1000,Default Value,Fully Paid,19-06-20
Harrogate and District NHS Other Foundation Trust BU,1121038006,6077607,05-06-20,11-06-20,NHS Supply Chain Co-ordination Limited,0,4,TAX,PRODUCT SALES,ZERO,259581,Resus Creditors,228000,Non- NHS  Trade Creditors < One Year,1000,Default Value,1000,Default Value,Fully Paid,19-06-20
Harrogate and District NHS Other Foundation Trust BU,1121038006,6077607,05-06-20,11-06-20,NHS Supply Chain Co-ordination Limited,1.03,5,TAX,PRODUCT SALES,5,259581,Resus Creditors,228000,Non- NHS  Trade Creditors < One Year,1000,Default Value,1000,Default Value,Fully Paid,19-06-20
Harrogate and District NHS Other Foundation Trust BU,1121038006,6077607,05-06-20,11-06-20,NHS Supply Chain Co-ordination Limited,0,5,TAX,PRODUCT SALES,5,259999,Default Value,156000,Vat Debtor < One Year,1000,Default Value,1000,Default Value,Fully Paid,19-06-20
Harrogate and District NHS Other Foundation Trust BU,1121038006,6077607,05-06-20,11-06-20,NHS Supply Chain Co-ordination Limited,0,6,TAX,PRODUCT SALES,STD,259999,Default Value,156000,Vat Debtor < One Year,1000,Default Value,1000,Default Value,Fully Paid,19-06-20
Harrogate and District NHS Other Foundation Trust BU,1121038006,6077607,05-06-20,11-06-20,NHS Supply Chain Co-ordination Limited,12731.26,6,TAX,PRODUCT SALES,STD,259581,Resus Creditors,228000,Non- NHS  Trade Creditors < One Year,1000,Default Value,1000,Default Value,Fully Paid,19-06-20
Harrogate and District NHS Other Foundation Trust BU,1121042191,6078013,12-06-20,16-06-20,NHS Supply Chain Co-ordination Limited,36892.85,1,ITEM,NHS PRODUCT SALE SUMMARY,,259581,Resus Creditors,228000,Non- NHS  Trade Creditors < One Year,1000,Default Value,1000,Default Value,Fully Paid,26-06-20
Harrogate and District NHS Other Foundation Trust BU,1121042191,6078013,12-06-20,16-06-20,NHS Supply Chain Co-ordination Limited,10.32,2,ITEM,NHS PRODUCT SALE SUMMARY,,259581,Resus Creditors,228000,Non- NHS  Trade Creditors < One Year,1000,Default Value,1000,Default Value,Fully Paid,26-06-20
Harrogate and District NHS Other Foundation Trust BU,1121042191,6078013,12-06-20,16-06-20,NHS Supply Chain Co-ordination Limited,355.01,3,ITEM,NHS PRODUCT SALE SUMMARY,,259581,Resus Creditors,228000,Non- NHS  Trade Creditors < One Year,1000,Default Value,1000,Default Value,Fully Paid,26-06-20
Harrogate and District NHS Other Foundation Trust BU,1121042191,6078013,12-06-20,16-06-20,NHS Supply Chain Co-ordination Limited,0,4,TAX,NHS PRODUCT SALE SUMMARY,STD,259999,Default Value,156000,Vat Debtor < One Year,1000,Default Value,1000,Default Value,Fully Paid,26-06-20
Harrogate and District NHS Other Foundation Trust BU,1121042191,6078013,12-06-20,16-06-20,NHS Supply Chain Co-ordination Limited,7378.57,4,TAX,NHS PRODUCT SALE SUMMARY,STD,259581,Resus Creditors,228000,Non- NHS  Trade Creditors < One Year,1000,Default Value,1000,Default Value,Fully Paid,26-06-20
Harrogate and District NHS Other Foundation Trust BU,1121042191,6078013,12-06-20,16-06-20,NHS Supply Chain Co-ordination Limited,0,5,TAX,NHS PRODUCT SALE SUMMARY,ZERO,259581,Resus Creditors,228000,Non- NHS  Trade Creditors < One Year,1000,Default Value,1000,Default Value,Fully Paid,26-06-20
Harrogate and District NHS Other Foundation Trust BU,1121042191,6078013,12-06-20,16-06-20,NHS Supply Chain Co-ordination Limited,0,5,TAX,NHS PRODUCT SALE SUMMARY,ZERO,259999,Default Value,156000,Vat Debtor < One Year,1000,Default Value,1000,Default Value,Fully Paid,26-06-20
Harrogate and District NHS Other Foundation Trust BU,1121042191,6078013,12-06-20,16-06-20,NHS Supply Chain Co-ordination Limited,0,6,TAX,NHS PRODUCT SALE SUMMARY,5,259999,Default Value,156000,Vat Debtor < One Year,1000,Default Value,1000,Default Value,Fully Paid,26-06-20
Harrogate and District NHS Other Foundation Trust BU,1121042191,6078013,12-06-20,16-06-20,NHS Supply Chain Co-ordination Limited,.52,6,TAX,NHS PRODUCT SALE SUMMARY,5,259581,Resus Creditors,228000,Non- NHS  Trade Creditors < One Year,1000,Default Value,1000,Default Value,Fully Paid,26-06-20
Harrogate and District NHS Other Foundation Trust BU,1410153114,6069665,13-03-20,24-03-20,Leeds Teaching Hospitals Nhs Trust,32080.72,1,ITEM,,,251802,Endoscopy,733100,Rent,1000,Default Value,5016,Rr8 - Leeds Teaching Hospitals Nhs Trust,Fully Paid,19-06-20
Harrogate and District NHS Other Foundation Trust BU,1410153114,6069665,13-03-20,24-03-20,Leeds Teaching Hospitals Nhs Trust,0,2,TAX,WH ENDOSCOPY TREATMENT SESSION 28 FEB 20,ZERO,251802,Endoscopy,733100,Rent,1000,Default Value,5016,Rr8 - Leeds Teaching Hospitals Nhs Trust,Fully Paid,19-06-20
Harrogate and District NHS Other Foundation Trust BU,1410153114,6069665,13-03-20,24-03-20,Leeds Teaching Hospitals Nhs Trust,0,2,TAX,WH ENDOSCOPY TREATMENT SESSION 28 FEB 20,ZERO,259999,Default Value,156000,Vat Debtor < One Year,1000,Default Value,1000,Default Value,Fully Paid,19-06-20
Harrogate and District NHS Other Foundation Trust BU,202879,6075160,18-05-20,19-05-20,Silverlink Software Ltd,70930.25,1,ITEM,ICS Quarterly Support - Q2: 01/07/2020-30/09/2020,,252607,It Contracts,735700,Computer Maintenance,1000,Default Value,1000,Default Value,Fully Paid,12-06-20
Harrogate and District NHS Other Foundation Trust BU,202879,6075160,18-05-20,19-05-20,Silverlink Software Ltd,14186.05,2,TAX,NEP VAT REGIME - VAT TAX,14 COS,252607,It Contracts,735700,Computer Maintenance,1000,Default Value,1000,Default Value,Fully Paid,12-06-20
Harrogate and District NHS Other Foundation Trust BU,202879,6075160,18-05-20,19-05-20,Silverlink Software Ltd,-14186.05,2,TAX,NEP VAT REGIME - VAT TAX,14 COS,252607,It Contracts,735700,Computer Maintenance,1000,Default Value,1000,Default Value,Fully Paid,12-06-20
Harrogate and District NHS Other Foundation Trust BU,202879,6075160,18-05-20,19-05-20,Silverlink Software Ltd,14186.05,2,TAX,NEP VAT REGIME - VAT TAX,14 COS,259999,Default Value,156000,Vat Debtor < One Year,1000,Default Value,1000,Default Value,Fully Paid,12-06-20
Harrogate and District NHS Other Foundation Trust BU,231488,6073164,20-04-20,25-04-20,Leec Ltd,37732.5,1,ITEM,"HIRE OF 2 BODY STORAGE UNITS FOR A 26 WEEK PERIOD, DELIVERY TO NIGHTINGALE HOSPITAL, PLEASE LIAISE WITH JONATHAN CLARKSON RE DELIVERY AND INSTALLATION jonathan.clarkson1@nhs.net ",,251953,Coronavirus Nightingale Pathology,712000,Laboratory Equipment,1000,Default Value,1000,Default Value,Fully Paid,12-06-20
Harrogate and District NHS Other Foundation Trust BU,231488,6073164,20-04-20,25-04-20,Leec Ltd,37732.5,1,ITEM,"HIRE OF 2 BODY STORAGE UNITS FOR A 26 WEEK PERIOD, DELIVERY TO NIGHTINGALE HOSPITAL, PLEASE LIAISE WITH JONATHAN CLARKSON RE DELIVERY AND INSTALLATION jonathan.clarkson1@nhs.net ",,251953,Coronavirus Nightingale Pathology,712000,Laboratory Equipment,1000,Default Value,1000,Default Value,Fully Paid,12-06-20
Harrogate and District NHS Other Foundation Trust BU,231488,6073164,20-04-20,25-04-20,Leec Ltd,37732.5,1,ITEM,"HIRE OF 2 BODY STORAGE UNITS FOR A 26 WEEK PERIOD, DELIVERY TO NIGHTINGALE HOSPITAL, PLEASE LIAISE WITH JONATHAN CLARKSON RE DELIVERY AND INSTALLATION jonathan.clarkson1@nhs.net ",,251953,Coronavirus Nightingale Pathology,712000,Laboratory Equipment,1000,Default Value,1000,Default Value,Fully Paid,26-06-20
Harrogate and District NHS Other Foundation Trust BU,231488,6073164,20-04-20,25-04-20,Leec Ltd,7546.5,2,TAX,NEP VAT REGIME - VAT TAX,STD,251953,Coronavirus Nightingale Pathology,712000,Laboratory Equipment,1000,Default Value,1000,Default Value,Fully Paid,12-06-20
Harrogate and District NHS Other Foundation Trust BU,231488,6073164,20-04-20,25-04-20,Leec Ltd,7546.5,2,TAX,NEP VAT REGIME - VAT TAX,STD,251953,Coronavirus Nightingale Pathology,712000,Laboratory Equipment,1000,Default Value,1000,Default Value,Fully Paid,12-06-20
Harrogate and District NHS Other Foundation Trust BU,231488,6073164,20-04-20,25-04-20,Leec Ltd,0,2,TAX,NEP VAT REGIME - VAT TAX,STD,259999,Default Value,156000,Vat Debtor < One Year,1000,Default Value,1000,Default Value,Fully Paid,12-06-20
Harrogate and District NHS Other Foundation Trust BU,231488,6073164,20-04-20,25-04-20,Leec Ltd,0,2,TAX,NEP VAT REGIME - VAT TAX,STD,259999,Default Value,156000,Vat Debtor < One Year,1000,Default Value,1000,Default Value,Fully Paid,26-06-20
Harrogate and District NHS Other Foundation Trust BU,231488,6073164,20-04-20,25-04-20,Leec Ltd,7546.5,2,TAX,NEP VAT REGIME - VAT TAX,STD,251953,Coronavirus Nightingale Pathology,712000,Laboratory Equipment,1000,Default Value,1000,Default Value,Fully Paid,26-06-20
Harrogate and District NHS Other Foundation Trust BU,231488,6073164,20-04-20,25-04-20,Leec Ltd,0,2,TAX,NEP VAT REGIME - VAT TAX,STD,259999,Default Value,156000,Vat Debtor < One Year,1000,Default Value,1000,Default Value,Fully Paid,12-06-20
Harrogate and District NHS Other Foundation Trust BU,2810029633,6073977,30-04-20,04-05-20,Yorkshire Ambulance Service Nhs Trust,27510.75,1,ITEM,,,255166,Ooh Team,750000,Non Healthcare Services From NHS Trusts,1000,Default Value,5061,Rx8 - Yorkshire Ambulance Service Nhs Trust,Fully Paid,05-06-20
Harrogate and District NHS Other Foundation Trust BU,2810029633,6073977,30-04-20,04-05-20,Yorkshire Ambulance Service Nhs Trust,0,2,TAX,NEP VAT REGIME - VAT TAX,ZERO,255166,Ooh Team,750000,Non Healthcare Services From NHS Trusts,1000,Default Value,5061,Rx8 - Yorkshire Ambulance Service Nhs Trust,Fully Paid,05-06-20
Harrogate and District NHS Other Foundation Trust BU,2810029633,6073977,30-04-20,04-05-20,Yorkshire Ambulance Service Nhs Trust,0,2,TAX,NEP VAT REGIME - VAT TAX,ZERO,259999,Default Value,156000,Vat Debtor < One Year,1000,Default Value,1000,Default Value,Fully Paid,05-06-20
Harrogate and District NHS Other Foundation Trust BU,28822574,6077605,10-06-20,11-06-20,Stryker Uk Ltd,112944.2,1,ITEM,replaces original invoice 28794255 which was credited,,259191,Intermediate Schemes,100810,Additions - Assets Under Construction,1000,Default Value,1000,Default Value,Fully Paid,19-06-20
Harrogate and District NHS Other Foundation Trust BU,28822574,6077605,10-06-20,11-06-20,Stryker Uk Ltd,22588.84,2,TAX,replaces original invoice 28794255 which was credited,STD,259191,Intermediate Schemes,100810,Additions - Assets Under Construction,1000,Default Value,1000,Default Value,Fully Paid,19-06-20
Harrogate and District NHS Other Foundation Trust BU,28822574,6077605,10-06-20,11-06-20,Stryker Uk Ltd,0,2,TAX,replaces original invoice 28794255 which was credited,STD,259999,Default Value,156000,Vat Debtor < One Year,1000,Default Value,1000,Default Value,Fully Paid,19-06-20
Harrogate and District NHS Other Foundation Trust BU,310002170,6075356,13-05-20,21-05-20,North Yorkshire County Council_,29000,1,ITEM,LICENCE FEE FOR 5 DESKS WITHIN SKIPTON CHILDRENS CENTRE,,255146,Ny Management Team,733100,Rent,1000,Default Value,7501,North Yorkshire County Council,Fully Paid,12-06-20
Harrogate and District NHS Other Foundation Trust BU,310002170,6075356,13-05-20,21-05-20,North Yorkshire County Council_,0,2,TAX,LICENCE FEE FOR 5 DESKS WITHIN SKIPTON CHILDRENS CENTRE,ZERO,259999,Default Value,156000,Vat Debtor < One Year,1000,Default Value,1000,Default Value,Fully Paid,12-06-20
Harrogate and District NHS Other Foundation Trust BU,310002170,6075356,13-05-20,21-05-20,North Yorkshire County Council_,0,2,TAX,LICENCE FEE FOR 5 DESKS WITHIN SKIPTON CHILDRENS CENTRE,ZERO,255146,Ny Management Team,733100,Rent,1000,Default Value,7501,North Yorkshire County Council,Fully Paid,12-06-20
Harrogate and District NHS Other Foundation Trust BU,315144,6073464,27-04-20,29-04-20,Ascom Uk Ltd,35346,1,ITEM,Ascom Myco 3 (50) plus accessories,,259191,Intermediate Schemes,100810,Additions - Assets Under Construction,1000,Default Value,1000,Default Value,Fully Paid,05-06-20
Harrogate and District NHS Other Foundation Trust BU,315144,6073464,27-04-20,29-04-20,Ascom Uk Ltd,7069.2,2,TAX,NEP VAT REGIME - VAT TAX,STD,259191,Intermediate Schemes,100810,Additions - Assets Under Construction,1000,Default Value,1000,Default Value,Fully Paid,05-06-20
Harrogate and District NHS Other Foundation Trust BU,315144,6073464,27-04-20,29-04-20,Ascom Uk Ltd,0,2,TAX,NEP VAT REGIME - VAT TAX,STD,259999,Default Value,156000,Vat Debtor < One Year,1000,Default Value,1000,Default Value,Fully Paid,05-06-20
Harrogate and District NHS Other Foundation Trust BU,3678,6072942,30-03-20,24-04-20,Jcp Consulting Engineers Ltd,33435.2,1,ITEM,JCP Consulting Engineers. Scheme No. L027: Provision of 2nd CT Scanner Re. Mechanical and Electrical fees.,,259190,Capital Scheme - Ras,100810,Additions - Assets Under Construction,1000,Default Value,1000,Default Value,Fully Paid,05-06-20
Harrogate and District NHS Other Foundation Trust BU,3678,6072942,30-03-20,24-04-20,Jcp Consulting Engineers Ltd,-6687.04,2,TAX,NEP VAT REGIME - VAT TAX,52 COS,259190,Capital Scheme - Ras,100810,Additions - Assets Under Construction,1000,Default Value,1000,Default Value,Fully Paid,05-06-20
Harrogate and District NHS Other Foundation Trust BU,3678,6072942,30-03-20,24-04-20,Jcp Consulting Engineers Ltd,6687.04,2,TAX,NEP VAT REGIME - VAT TAX,52 COS,259190,Capital Scheme - Ras,100810,Additions - Assets Under Construction,1000,Default Value,1000,Default Value,Fully Paid,05-06-20
Harrogate and District NHS Other Foundation Trust BU,3678,6072942,30-03-20,24-04-20,Jcp Consulting Engineers Ltd,6687.04,2,TAX,NEP VAT REGIME - VAT TAX,52 COS,259999,Default Value,156000,Vat Debtor < One Year,1000,Default Value,1000,Default Value,Fully Paid,05-06-20
Harrogate and District NHS Other Foundation Trust BU,4810018310,6074574,01-05-20,14-05-20,Tees Esk And Wear Valleys Nhs Foundation Trust,44793.28,1,ITEM,COUNTY DURHAM RESILLIENCE NURSES RECHARGE - JANUARY TO JULY 2020,,255056,Durham Management Team,841100,Agency Nursing,1000,Default Value,6041,"Rx3 - Tees, Esk And Wear Valleys Nhs Foundation Trust",Fully Paid,05-06-20
Harrogate and District NHS Other Foundation Trust BU,4810018310,6074574,01-05-20,14-05-20,Tees Esk And Wear Valleys Nhs Foundation Trust,0,2,TAX,NEP VAT REGIME - VAT TAX,ZERO,255056,Durham Management Team,841100,Agency Nursing,1000,Default Value,6041,"Rx3 - Tees, Esk And Wear Valleys Nhs Foundation Trust",Fully Paid,05-06-20
Harrogate and District NHS Other Foundation Trust BU,4810018310,6074574,01-05-20,14-05-20,Tees Esk And Wear Valleys Nhs Foundation Trust,0,2,TAX,NEP VAT REGIME - VAT TAX,ZERO,259999,Default Value,156000,Vat Debtor < One Year,1000,Default Value,1000,Default Value,Fully Paid,05-06-20
Harrogate and District NHS Other Foundation Trust BU,49304026,6064049,05-02-20,06-02-20,Health Education England,47059.14,1,ITEM,Re. Invoice No. 49304026 - Other operating revenue NHS - outside of scope: Global nurses around the world arrivals 2019/20.,,251155,Nurse Recruitment,725000,Advertising and Staff Recruitment,1000,Default Value,1000,Default Value,Fully Paid,05-06-20
Harrogate and District NHS Other Foundation Trust BU,49304026,6064049,05-02-20,06-02-20,Health Education England,0,2,TAX,NEP VAT REGIME - VAT TAX,57 COS,251155,Nurse Recruitment,725000,Advertising and Staff Recruitment,1000,Default Value,1000,Default Value,Fully Paid,05-06-20
Harrogate and District NHS Other Foundation Trust BU,49304026,6064049,05-02-20,06-02-20,Health Education England,-9411.83,2,TAX,NEP VAT REGIME - VAT TAX,57 COS,259999,Default Value,156000,Vat Debtor < One Year,1000,Default Value,1000,Default Value,Fully Paid,05-06-20
Harrogate and District NHS Other Foundation Trust BU,49304026,6064049,05-02-20,06-02-20,Health Education England,0,2,TAX,NEP VAT REGIME - VAT TAX,57 COS,251155,Nurse Recruitment,725000,Advertising and Staff Recruitment,1000,Default Value,1000,Default Value,Fully Paid,05-06-20
Harrogate and District NHS Other Foundation Trust BU,49304026,6064049,05-02-20,06-02-20,Health Education England,9411.83,2,TAX,NEP VAT REGIME - VAT TAX,57 COS,259999,Default Value,156000,Vat Debtor < One Year,1000,Default Value,1000,Default Value,Fully Paid,05-06-20
Harrogate and District NHS Other Foundation Trust BU,49304026,6064049,05-02-20,06-02-20,Health Education England,0,3,TAX,NEP VAT REGIME - VAT TAX,ZERO,251155,Nurse Recruitment,725000,Advertising and Staff Recruitment,1000,Default Value,1000,Default Value,Fully Paid,05-06-20
Harrogate and District NHS Other Foundation Trust BU,49304026,6064049,05-02-20,06-02-20,Health Education England,0,3,TAX,NEP VAT REGIME - VAT TAX,ZERO,259999,Default Value,156000,Vat Debtor < One Year,1000,Default Value,1000,Default Value,Fully Paid,05-06-20
Harrogate and District NHS Other Foundation Trust BU,501257034,6066120,20-02-20,24-02-20,Durham County Council,160000,1,ITEM,ACCOMMODATION AND IT PAYMENTS,,251720,Management Team - Ccwcc,733100,Rent,1000,Default Value,7513,Durham County Council Aka County Durham Unitary Authority,Fully Paid,05-06-20
Harrogate and District NHS Other Foundation Trust BU,501257034,6066120,20-02-20,24-02-20,Durham County Council,0,2,TAX,ACCOMMODATION AND IT PAYMENTS,ZERO,259999,Default Value,156000,Vat Debtor < One Year,1000,Default Value,1000,Default Value,Fully Paid,05-06-20
Harrogate and District NHS Other Foundation Trust BU,501257034,6066120,20-02-20,24-02-20,Durham County Council,0,2,TAX,ACCOMMODATION AND IT PAYMENTS,ZERO,251720,Management Team - Ccwcc,733100,Rent,1000,Default Value,7513,Durham County Council Aka County Durham Unitary Authority,Fully Paid,05-06-20
Harrogate and District NHS Other Foundation Trust BU,501259899,6070841,31-03-20,03-04-20,Durham County Council,62152,1,ITEM,IT and Accommodation Quarter 4 Jan-March 2020 ,,255056,Durham Management Team,733100,Rent,1000,Default Value,1000,Default Value,Fully Paid,05-06-20
Harrogate and District NHS Other Foundation Trust BU,501259899,6070841,31-03-20,03-04-20,Durham County Council,-62152,3,ITEM,QTR 4 ACCOMM AND IT PAYMENTS,,255056,Durham Management Team,733100,Rent,1000,Default Value,1000,Default Value,Fully Paid,05-06-20
Harrogate and District NHS Other Foundation Trust BU,501259899,6070841,31-03-20,03-04-20,Durham County Council,62152,4,ITEM,QTR 4 ACCOMM AND IT PAYMENTS,,255056,Durham Management Team,733100,Rent,1000,Default Value,7513,Durham County Council Aka County Durham Unitary Authority,Fully Paid,05-06-20
Harrogate and District NHS Other Foundation Trust BU,501259899,6070841,31-03-20,03-04-20,Durham County Council,-12430.4,5,TAX,QTR 4 ACCOMM AND IT PAYMENTS,ZERO,255056,Durham Management Team,733100,Rent,1000,Default Value,1000,Default Value,Fully Paid,05-06-20
Harrogate and District NHS Other Foundation Trust BU,501259899,6070841,31-03-20,03-04-20,Durham County Council,0,5,TAX,QTR 4 ACCOMM AND IT PAYMENTS,ZERO,255056,Durham Management Team,733100,Rent,1000,Default Value,7513,Durham County Council Aka County Durham Unitary Authority,Fully Paid,05-06-20
Harrogate and District NHS Other Foundation Trust BU,501259899,6070841,31-03-20,03-04-20,Durham County Council,0,5,TAX,QTR 4 ACCOMM AND IT PAYMENTS,ZERO,259999,Default Value,156000,Vat Debtor < One Year,1000,Default Value,1000,Default Value,Fully Paid,05-06-20
Harrogate and District NHS Other Foundation Trust BU,501259899,6070841,31-03-20,03-04-20,Durham County Council,0,5,TAX,QTR 4 ACCOMM AND IT PAYMENTS,ZERO,255056,Durham Management Team,733100,Rent,1000,Default Value,1000,Default Value,Fully Paid,05-06-20
Harrogate and District NHS Other Foundation Trust BU,501259899,6070841,31-03-20,03-04-20,Durham County Council,0,5,TAX,QTR 4 ACCOMM AND IT PAYMENTS,ZERO,259999,Default Value,156000,Vat Debtor < One Year,1000,Default Value,1000,Default Value,Fully Paid,05-06-20
Harrogate and District NHS Other Foundation Trust BU,501259899,6070841,31-03-20,03-04-20,Durham County Council,0,5,TAX,QTR 4 ACCOMM AND IT PAYMENTS,ZERO,259999,Default Value,156000,Vat Debtor < One Year,1000,Default Value,1000,Default Value,Fully Paid,05-06-20
Harrogate and District NHS Other Foundation Trust BU,501259899,6070841,31-03-20,03-04-20,Durham County Council,12430.4,5,TAX,QTR 4 ACCOMM AND IT PAYMENTS,ZERO,255056,Durham Management Team,733100,Rent,1000,Default Value,1000,Default Value,Fully Paid,05-06-20
Harrogate and District NHS Other Foundation Trust BU,501264451,6075629,20-05-20,22-05-20,Durham County Council,126812,1,ITEM,Premises recharge 0-19 Contract April- June 2020 Ref 501264451,,255056,Durham Management Team,733100,Rent,1000,Default Value,1000,Default Value,Fully Paid,05-06-20
Harrogate and District NHS Other Foundation Trust BU,501264451,6075629,20-05-20,22-05-20,Durham County Council,-126812,3,ITEM,PERMISES RECHARGE FOR 0-19 CONTRACT APR-JUN2020,,255056,Durham Management Team,733100,Rent,1000,Default Value,1000,Default Value,Fully Paid,05-06-20
Harrogate and District NHS Other Foundation Trust BU,501264451,6075629,20-05-20,22-05-20,Durham County Council,126812,4,ITEM,PERMISES RECHARGE FOR 0-19 CONTRACT APR-JUN2020,,255056,Durham Management Team,733100,Rent,1000,Default Value,7513,Durham County Council Aka County Durham Unitary Authority,Fully Paid,05-06-20
Harrogate and District NHS Other Foundation Trust BU,501264451,6075629,20-05-20,22-05-20,Durham County Council,0,5,TAX,PERMISES RECHARGE FOR 0-19 CONTRACT APR-JUN2020,ZERO,259999,Default Value,156000,Vat Debtor < One Year,1000,Default Value,1000,Default Value,Fully Paid,05-06-20
Harrogate and District NHS Other Foundation Trust BU,501264451,6075629,20-05-20,22-05-20,Durham County Council,0,5,TAX,PERMISES RECHARGE FOR 0-19 CONTRACT APR-JUN2020,ZERO,255056,Durham Management Team,733100,Rent,1000,Default Value,7513,Durham County Council Aka County Durham Unitary Authority,Fully Paid,05-06-20
Harrogate and District NHS Other Foundation Trust BU,501264451,6075629,20-05-20,22-05-20,Durham County Council,-25362.4,5,TAX,PERMISES RECHARGE FOR 0-19 CONTRACT APR-JUN2020,ZERO,255056,Durham Management Team,733100,Rent,1000,Default Value,1000,Default Value,Fully Paid,05-06-20
Harrogate and District NHS Other Foundation Trust BU,501264451,6075629,20-05-20,22-05-20,Durham County Council,25362.4,5,TAX,PERMISES RECHARGE FOR 0-19 CONTRACT APR-JUN2020,ZERO,255056,Durham Management Team,733100,Rent,1000,Default Value,1000,Default Value,Fully Paid,05-06-20
Harrogate and District NHS Other Foundation Trust BU,501264451,6075629,20-05-20,22-05-20,Durham County Council,0,5,TAX,PERMISES RECHARGE FOR 0-19 CONTRACT APR-JUN2020,ZERO,259999,Default Value,156000,Vat Debtor < One Year,1000,Default Value,1000,Default Value,Fully Paid,05-06-20
Harrogate and District NHS Other Foundation Trust BU,501264451,6075629,20-05-20,22-05-20,Durham County Council,0,5,TAX,PERMISES RECHARGE FOR 0-19 CONTRACT APR-JUN2020,ZERO,255056,Durham Management Team,733100,Rent,1000,Default Value,1000,Default Value,Fully Paid,05-06-20
Harrogate and District NHS Other Foundation Trust BU,501264451,6075629,20-05-20,22-05-20,Durham County Council,0,5,TAX,PERMISES RECHARGE FOR 0-19 CONTRACT APR-JUN2020,ZERO,259999,Default Value,156000,Vat Debtor < One Year,1000,Default Value,1000,Default Value,Fully Paid,05-06-20
Harrogate and District NHS Other Foundation Trust BU,5200000060,6073838,20-04-20,01-05-20,Integrated Laboratory Solutions LLP,316318,1,ITEM,Payment of ILS Invoice for June 2020 for Pathology services to HDFT.  (Price ex VAT),,251401,General Pathology,712800,Laboratory External Tests,1000,Default Value,1000,Default Value,Fully Paid,05-06-20
Harrogate and District NHS Other Foundation Trust BU,5200000060,6073838,20-04-20,01-05-20,Integrated Laboratory Solutions LLP,63263.6,2,TAX,JUNE 20,STD,251401,General Pathology,712800,Laboratory External Tests,1000,Default Value,1000,Default Value,Fully Paid,05-06-20
Harrogate and District NHS Other Foundation Trust BU,5200000060,6073838,20-04-20,01-05-20,Integrated Laboratory Solutions LLP,0,2,TAX,JUNE 20,STD,259999,Default Value,156000,Vat Debtor < One Year,1000,Default Value,1000,Default Value,Fully Paid,05-06-20
Harrogate and District NHS Other Foundation Trust BU,5300000055,6073840,20-04-20,01-05-20,Integrated Pathology Solution,257457,1,ITEM,Payment of IPS Invoice for June 2020 for Pathology services to HDFT.  (Price ex VAT),,251401,General Pathology,712800,Laboratory External Tests,1000,Default Value,1000,Default Value,Fully Paid,05-06-20
Harrogate and District NHS Other Foundation Trust BU,5300000055,6073840,20-04-20,01-05-20,Integrated Pathology Solution,0,2,TAX,NEP VAT REGIME - VAT TAX,ZERO,259999,Default Value,156000,Vat Debtor < One Year,1000,Default Value,1000,Default Value,Fully Paid,05-06-20
Harrogate and District NHS Other Foundation Trust BU,5300000055,6073840,20-04-20,01-05-20,Integrated Pathology Solution,-51491.4,2,TAX,NEP VAT REGIME - VAT TAX,ZERO,251401,General Pathology,712800,Laboratory External Tests,1000,Default Value,1000,Default Value,Fully Paid,05-06-20
Harrogate and District NHS Other Foundation Trust BU,5300000055,6073840,20-04-20,01-05-20,Integrated Pathology Solution,51491.4,2,TAX,NEP VAT REGIME - VAT TAX,ZERO,251401,General Pathology,712800,Laboratory External Tests,1000,Default Value,1000,Default Value,Fully Paid,05-06-20
Harrogate and District NHS Other Foundation Trust BU,585PM00122683/MAY20,6077903,10-06-20,15-06-20,Hmrc Government Employers Account,56761,1,ITEM,PAYMENTS FOR MAY 20,,259569,Apprenticeship Levy,241000,Apprenticeship Levy,1000,Default Value,1000,Default Value,Fully Paid,19-06-20
Harrogate and District NHS Other Foundation Trust BU,585PM00122683/MAY20,6077903,10-06-20,15-06-20,Hmrc Government Employers Account,1595939.06,2,ITEM,PAYMENTS FOR MAY 20,,259570,Income Tax,242000,Tax And Social Security Costs < One Year,1000,Default Value,1000,Default Value,Fully Paid,19-06-20
Harrogate and District NHS Other Foundation Trust BU,585PM00122683/MAY20,6077903,10-06-20,15-06-20,Hmrc Government Employers Account,844367.38,3,ITEM,PAYMENTS FOR MAY 20,,259571,Ni Employees,242000,Tax And Social Security Costs < One Year,1000,Default Value,1000,Default Value,Fully Paid,19-06-20
Harrogate and District NHS Other Foundation Trust BU,585PM00122683/MAY20,6077903,10-06-20,15-06-20,Hmrc Government Employers Account,1079739.3,4,ITEM,PAYMENTS FOR MAY 20,,259572,Ni Employers,242000,Tax And Social Security Costs < One Year,1000,Default Value,1000,Default Value,Fully Paid,19-06-20
Harrogate and District NHS Other Foundation Trust BU,585PM00122683/MAY20,6077903,10-06-20,15-06-20,Hmrc Government Employers Account,0,5,TAX,PAYMENTS FOR MAY 20,ZERO,259571,Ni Employees,242000,Tax And Social Security Costs < One Year,1000,Default Value,1000,Default Value,Fully Paid,19-06-20
Harrogate and District NHS Other Foundation Trust BU,585PM00122683/MAY20,6077903,10-06-20,15-06-20,Hmrc Government Employers Account,0,5,TAX,PAYMENTS FOR MAY 20,ZERO,259999,Default Value,156000,Vat Debtor < One Year,1000,Default Value,1000,Default Value,Fully Paid,19-06-20
Harrogate and District NHS Other Foundation Trust BU,585PM00122683/MAY20,6077903,10-06-20,15-06-20,Hmrc Government Employers Account,0,5,TAX,PAYMENTS FOR MAY 20,ZERO,259999,Default Value,156000,Vat Debtor < One Year,1000,Default Value,1000,Default Value,Fully Paid,19-06-20
Harrogate and District NHS Other Foundation Trust BU,585PM00122683/MAY20,6077903,10-06-20,15-06-20,Hmrc Government Employers Account,0,5,TAX,PAYMENTS FOR MAY 20,ZERO,259999,Default Value,156000,Vat Debtor < One Year,1000,Default Value,1000,Default Value,Fully Paid,19-06-20
Harrogate and District NHS Other Foundation Trust BU,585PM00122683/MAY20,6077903,10-06-20,15-06-20,Hmrc Government Employers Account,0,5,TAX,PAYMENTS FOR MAY 20,ZERO,259569,Apprenticeship Levy,241000,Apprenticeship Levy,1000,Default Value,1000,Default Value,Fully Paid,19-06-20
Harrogate and District NHS Other Foundation Trust BU,585PM00122683/MAY20,6077903,10-06-20,15-06-20,Hmrc Government Employers Account,0,5,TAX,PAYMENTS FOR MAY 20,ZERO,259570,Income Tax,242000,Tax And Social Security Costs < One Year,1000,Default Value,1000,Default Value,Fully Paid,19-06-20
Harrogate and District NHS Other Foundation Trust BU,585PM00122683/MAY20,6077903,10-06-20,15-06-20,Hmrc Government Employers Account,0,5,TAX,PAYMENTS FOR MAY 20,ZERO,259572,Ni Employers,242000,Tax And Social Security Costs < One Year,1000,Default Value,1000,Default Value,Fully Paid,19-06-20
Harrogate and District NHS Other Foundation Trust BU,585PM00122683/MAY20,6077903,10-06-20,15-06-20,Hmrc Government Employers Account,0,5,TAX,PAYMENTS FOR MAY 20,ZERO,259999,Default Value,156000,Vat Debtor < One Year,1000,Default Value,1000,Default Value,Fully Paid,19-06-20
Harrogate and District NHS Other Foundation Trust BU,60000753285/JUN20,6074477,12-03-20,13-05-20,Harrogate Borough Council,80640,1,ITEM,,,252588,Hdft - Rates,733000,Rates,1000,Default Value,1000,Default Value,Fully Paid,05-06-20
Harrogate and District NHS Other Foundation Trust BU,60000753285/JUN20,6074477,12-03-20,13-05-20,Harrogate Borough Council,0,2,TAX,NEP VAT REGIME - VAT TAX,ZERO,252588,Hdft - Rates,733000,Rates,1000,Default Value,1000,Default Value,Fully Paid,05-06-20
Harrogate and District NHS Other Foundation Trust BU,60000753285/JUN20,6074477,12-03-20,13-05-20,Harrogate Borough Council,0,2,TAX,NEP VAT REGIME - VAT TAX,ZERO,259999,Default Value,156000,Vat Debtor < One Year,1000,Default Value,1000,Default Value,Fully Paid,05-06-20
Harrogate and District NHS Other Foundation Trust BU,65225972B,6077077,26-05-20,08-06-20,Aah Hospital Service,0,1,ITEM,PHARMACY DRUG STOCK PURCHASE,,259201,Hdh Pharmacy Drugs - Stock,110000,Raw Materials And Consumables,1000,Default Value,1000,Default Value,Fully Paid,12-06-20
Harrogate and District NHS Other Foundation Trust BU,65225972B,6077077,26-05-20,08-06-20,Aah Hospital Service,0,1,ITEM,PHARMACY DRUG STOCK PURCHASE,,259999,Default Value,156000,Vat Debtor < One Year,1000,Default Value,1000,Default Value,Fully Paid,12-06-20
Harrogate and District NHS Other Foundation Trust BU,65225972B,6077077,26-05-20,08-06-20,Aah Hospital Service,32349.12,1,ITEM,PHARMACY DRUG STOCK PURCHASE,,259201,Hdh Pharmacy Drugs - Stock,110000,Raw Materials And Consumables,1000,Default Value,1000,Default Value,Fully Paid,12-06-20
Harrogate and District NHS Other Foundation Trust BU,74754162E,6075425,07-04-20,21-05-20,Aah Hospital Service,0,1,ITEM,PHARMACY DRUG STOCK PURCHASE,,259201,Hdh Pharmacy Drugs - Stock,110000,Raw Materials And Consumables,1000,Default Value,1000,Default Value,Fully Paid,05-06-20
Harrogate and District NHS Other Foundation Trust BU,74754162E,6075425,07-04-20,21-05-20,Aah Hospital Service,0,1,ITEM,PHARMACY DRUG STOCK PURCHASE,,259999,Default Value,156000,Vat Debtor < One Year,1000,Default Value,1000,Default Value,Fully Paid,05-06-20
Harrogate and District NHS Other Foundation Trust BU,74754162E,6075425,07-04-20,21-05-20,Aah Hospital Service,25879.3,1,ITEM,PHARMACY DRUG STOCK PURCHASE,,259201,Hdh Pharmacy Drugs - Stock,110000,Raw Materials And Consumables,1000,Default Value,1000,Default Value,Fully Paid,05-06-20
Harrogate and District NHS Other Foundation Trust BU,824C279559,6076758,15-05-20,04-06-20,Bayer Plc,34217.1,1,ITEM,DRUGS BATCH001554,,259201,Hdh Pharmacy Drugs - Stock,110000,Raw Materials And Consumables,1000,Default Value,1000,Default Value,Fully Paid,12-06-20
Harrogate and District NHS Other Foundation Trust BU,824C279559,6076758,15-05-20,04-06-20,Bayer Plc,6843.42,2,TAX,DRUGS BATCH001554,STD,259201,Hdh Pharmacy Drugs - Stock,110000,Raw Materials And Consumables,1000,Default Value,1000,Default Value,Fully Paid,12-06-20
Harrogate and District NHS Other Foundation Trust BU,824C279559,6076758,15-05-20,04-06-20,Bayer Plc,0,2,TAX,DRUGS BATCH001554,STD,259999,Default Value,156000,Vat Debtor < One Year,1000,Default Value,1000,Default Value,Fully Paid,12-06-20
Harrogate and District NHS Other Foundation Trust BU,824C279559,6076758,15-05-20,04-06-20,Bayer Plc,6843.42,2,TAX,DRUGS BATCH001554,STD,259201,Hdh Pharmacy Drugs - Stock,110000,Raw Materials And Consumables,1000,Default Value,1000,Default Value,Fully Paid,12-06-20
Harrogate and District NHS Other Foundation Trust BU,824C279559,6076758,15-05-20,04-06-20,Bayer Plc,-6843.42,2,TAX,DRUGS BATCH001554,STD,259201,Hdh Pharmacy Drugs - Stock,110000,Raw Materials And Consumables,1000,Default Value,1000,Default Value,Fully Paid,12-06-20
Harrogate and District NHS Other Foundation Trust BU,824C279559,6076758,15-05-20,04-06-20,Bayer Plc,0,2,TAX,DRUGS BATCH001554,STD,259999,Default Value,156000,Vat Debtor < One Year,1000,Default Value,1000,Default Value,Fully Paid,12-06-20
Harrogate and District NHS Other Foundation Trust BU,824C279559,6076758,15-05-20,04-06-20,Bayer Plc,0,2,TAX,DRUGS BATCH001554,STD,259999,Default Value,156000,Vat Debtor < One Year,1000,Default Value,1000,Default Value,Fully Paid,12-06-20
Harrogate and District NHS Other Foundation Trust BU,824C281642,6076735,27-05-20,04-06-20,Bayer Plc,0,1,ITEM,PHARMACY DRUG STOCK PURCHASE,,259999,Default Value,156000,Vat Debtor < One Year,1000,Default Value,1000,Default Value,Fully Paid,12-06-20
Harrogate and District NHS Other Foundation Trust BU,824C281642,6076735,27-05-20,04-06-20,Bayer Plc,41060.52,1,ITEM,PHARMACY DRUG STOCK PURCHASE,,259201,Hdh Pharmacy Drugs - Stock,110000,Raw Materials And Consumables,1000,Default Value,1000,Default Value,Fully Paid,12-06-20
Harrogate and District NHS Other Foundation Trust BU,824C281642,6076735,27-05-20,04-06-20,Bayer Plc,0,1,ITEM,PHARMACY DRUG STOCK PURCHASE,,259201,Hdh Pharmacy Drugs - Stock,110000,Raw Materials And Consumables,1000,Default Value,1000,Default Value,Fully Paid,12-06-20
Harrogate and District NHS Other Foundation Trust BU,824C282258,6078052,01-06-20,17-06-20,Bayer Plc,0,1,ITEM,PHARMACY DRUG STOCK PURCHASE,,259201,Hdh Pharmacy Drugs - Stock,110000,Raw Materials And Consumables,1000,Default Value,1000,Default Value,Fully Paid,26-06-20
Harrogate and District NHS Other Foundation Trust BU,824C282258,6078052,01-06-20,17-06-20,Bayer Plc,41060.52,1,ITEM,PHARMACY DRUG STOCK PURCHASE,,259201,Hdh Pharmacy Drugs - Stock,110000,Raw Materials And Consumables,1000,Default Value,1000,Default Value,Fully Paid,26-06-20
Harrogate and District NHS Other Foundation Trust BU,824C282258,6078052,01-06-20,17-06-20,Bayer Plc,0,1,ITEM,PHARMACY DRUG STOCK PURCHASE,,259999,Default Value,156000,Vat Debtor < One Year,1000,Default Value,1000,Default Value,Fully Paid,26-06-20
Harrogate and District NHS Other Foundation Trust BU,824C283392,6078053,09-06-20,17-06-20,Bayer Plc,41060.52,1,ITEM,PHARMACY DRUG STOCK PURCHASE,,259201,Hdh Pharmacy Drugs - Stock,110000,Raw Materials And Consumables,1000,Default Value,1000,Default Value,Fully Paid,26-06-20
Harrogate and District NHS Other Foundation Trust BU,824C283392,6078053,09-06-20,17-06-20,Bayer Plc,0,1,ITEM,PHARMACY DRUG STOCK PURCHASE,,259201,Hdh Pharmacy Drugs - Stock,110000,Raw Materials And Consumables,1000,Default Value,1000,Default Value,Fully Paid,26-06-20
Harrogate and District NHS Other Foundation Trust BU,824C283392,6078053,09-06-20,17-06-20,Bayer Plc,0,1,ITEM,PHARMACY DRUG STOCK PURCHASE,,259999,Default Value,156000,Vat Debtor < One Year,1000,Default Value,1000,Default Value,Fully Paid,26-06-20
Harrogate and District NHS Other Foundation Trust BU,88601831,6056741,27-11-19,29-11-19,Aquilant Ltd Ta Aquilant Endoscopy,198303.24,1,ITEM,,,251802,Endoscopy,704100,Med Surg Eqpt Mtce Contracts,1000,Default Value,1000,Default Value,Fully Paid,05-06-20
Harrogate and District NHS Other Foundation Trust BU,88601831,6056741,27-11-19,29-11-19,Aquilant Ltd Ta Aquilant Endoscopy,0,2,TAX,NEP VAT REGIME - VAT TAX,STD,259999,Default Value,156000,Vat Debtor < One Year,1000,Default Value,1000,Default Value,Fully Paid,05-06-20
Harrogate and District NHS Other Foundation Trust BU,88601831,6056741,27-11-19,29-11-19,Aquilant Ltd Ta Aquilant Endoscopy,39660.65,2,TAX,NEP VAT REGIME - VAT TAX,STD,251802,Endoscopy,704100,Med Surg Eqpt Mtce Contracts,1000,Default Value,1000,Default Value,Fully Paid,05-06-20
Harrogate and District NHS Other Foundation Trust BU,889267,6075212,15-05-20,20-05-20,Nhs Blood And Transplant,41996.75,1,ITEM,MONTHLY CONTRACT CHARGE BLOOD,,251403,Blood Sciences - Non Pay,700100,Blood Products,2165,Nbs Contract,4001,Nhs Blood And Transplant,Fully Paid,05-06-20
Harrogate and District NHS Other Foundation Trust BU,889267,6075212,15-05-20,20-05-20,Nhs Blood And Transplant,0,2,TAX,MONTHLY CONTRACT CHARGE BLOOD,ZERO,259999,Default Value,156000,Vat Debtor < One Year,1000,Default Value,1000,Default Value,Fully Paid,05-06-20
Harrogate and District NHS Other Foundation Trust BU,889267,6075212,15-05-20,20-05-20,Nhs Blood And Transplant,0,2,TAX,MONTHLY CONTRACT CHARGE BLOOD,ZERO,251403,Blood Sciences - Non Pay,700100,Blood Products,2165,Nbs Contract,4001,Nhs Blood And Transplant,Fully Paid,05-06-20
Harrogate and District NHS Other Foundation Trust BU,91125,6074513,07-05-20,13-05-20,Lloyds Pharmacy Ltd,195507.26,1,ITEM,CALL OFF ORDER FOR LLOYDS OUTPATIENT PHARMACY DRUGS INVOICE(S) TO COVER THE PERIOD FROM APRIL 2019 - SEPTEMBER 2019 ,,251201,Main Pharmacy Department,700000,Drugs,1000,Default Value,1000,Default Value,Fully Paid,26-06-20
Harrogate and District NHS Other Foundation Trust BU,91125,6074513,07-05-20,13-05-20,Lloyds Pharmacy Ltd,18467,2,ITEM,Provision of Pharmacy OPD dispensing services for 5 years with 2 year extension option commencing 20/3/2017 as per tender offer dst1026 order to cover dispensing/mgmt. fee year 3 between 1st April 2020 and 31st March 2021This requisition ,,251201,Main Pharmacy Department,734700,Contract : Other External,1000,Default Value,1000,Default Value,Fully Paid,26-06-20
Harrogate and District NHS Other Foundation Trust BU,91125,6074513,07-05-20,13-05-20,Lloyds Pharmacy Ltd,39101.45,3,TAX,DISPENSING LINES,ZERO,251201,Main Pharmacy Department,700000,Drugs,1000,Default Value,1000,Default Value,Fully Paid,26-06-20
Harrogate and District NHS Other Foundation Trust BU,91125,6074513,07-05-20,13-05-20,Lloyds Pharmacy Ltd,0,3,TAX,DISPENSING LINES,ZERO,259999,Default Value,156000,Vat Debtor < One Year,1000,Default Value,1000,Default Value,Fully Paid,26-06-20
Harrogate and District NHS Other Foundation Trust BU,91125,6074513,07-05-20,13-05-20,Lloyds Pharmacy Ltd,0,3,TAX,DISPENSING LINES,ZERO,251201,Main Pharmacy Department,734700,Contract : Other External,1000,Default Value,1000,Default Value,Fully Paid,26-06-20
Harrogate and District NHS Other Foundation Trust BU,91125,6074513,07-05-20,13-05-20,Lloyds Pharmacy Ltd,-39101.45,3,TAX,DISPENSING LINES,ZERO,251201,Main Pharmacy Department,700000,Drugs,1000,Default Value,1000,Default Value,Fully Paid,26-06-20
Harrogate and District NHS Other Foundation Trust BU,91125,6074513,07-05-20,13-05-20,Lloyds Pharmacy Ltd,0,3,TAX,DISPENSING LINES,ZERO,259999,Default Value,156000,Vat Debtor < One Year,1000,Default Value,1000,Default Value,Fully Paid,26-06-20
Harrogate and District NHS Other Foundation Trust BU,9521000291,6078091,07-05-20,17-06-20,NHS Supply Chain Co-ordination Limited,-99408,1,ITEM,"MINI C ARM HOLOGIC FLUROSCAN AS PER QUOTE CM200320A, VERTEC SCIENTIFIC, NHSSC URN MID 1056 MII 20",,259191,Intermediate Schemes,100810,Additions - Assets Under Construction,1000,Default Value,1000,Default Value,Fully Paid,26-06-20
Harrogate and District NHS Other Foundation Trust BU,9521000291,6078091,07-05-20,17-06-20,NHS Supply Chain Co-ordination Limited,99408,1,ITEM,"MINI C ARM HOLOGIC FLUROSCAN AS PER QUOTE CM200320A, VERTEC SCIENTIFIC, NHSSC URN MID 1056 MII 20",,259191,Intermediate Schemes,100810,Additions - Assets Under Construction,1000,Default Value,1000,Default Value,Fully Paid,26-06-20
Harrogate and District NHS Other Foundation Trust BU,9521000291,6078091,07-05-20,17-06-20,NHS Supply Chain Co-ordination Limited,19881.6,2,TAX,NEP VAT REGIME - VAT TAX,STD,259191,Intermediate Schemes,100810,Additions - Assets Under Construction,1000,Default Value,1000,Default Value,Fully Paid,26-06-20
Harrogate and District NHS Other Foundation Trust BU,9521000291,6078091,07-05-20,17-06-20,NHS Supply Chain Co-ordination Limited,0,2,TAX,NEP VAT REGIME - VAT TAX,STD,259999,Default Value,156000,Vat Debtor < One Year,1000,Default Value,1000,Default Value,Fully Paid,26-06-20
Harrogate and District NHS Other Foundation Trust BU,9521000291,6078091,07-05-20,17-06-20,NHS Supply Chain Co-ordination Limited,99408,3,ITEM,"MINI C ARM HOLOGIC FLUROSCAN AS PER QUOTE CM200320A, VERTEC SCIENTIFIC, NHSSC URN MID 1056 MII 20",,259191,Intermediate Schemes,100810,Additions - Assets Under Construction,1000,Default Value,1000,Default Value,Fully Paid,26-06-20
Harrogate and District NHS Other Foundation Trust BU,APR20-0002,6073995,30-04-20,05-05-20,Family Action,36492.93,1,ITEM,Purchase order number required for Family Action Sub  Contract 2019-20. Lot 3 Contract,,255056,Durham Management Team,734700,Contract : Other External,1000,Default Value,1000,Default Value,Fully Paid,05-06-20
Harrogate and District NHS Other Foundation Trust BU,APR20-0002,6073995,30-04-20,05-05-20,Family Action,-7298.59,2,TAX,FUNDING FOR FINANCIAL YEAR 2020-2021,ZERO,255056,Durham Management Team,734700,Contract : Other External,1000,Default Value,1000,Default Value,Fully Paid,05-06-20
Harrogate and District NHS Other Foundation Trust BU,APR20-0002,6073995,30-04-20,05-05-20,Family Action,0,2,TAX,FUNDING FOR FINANCIAL YEAR 2020-2021,ZERO,259999,Default Value,156000,Vat Debtor < One Year,1000,Default Value,1000,Default Value,Fully Paid,05-06-20
Harrogate and District NHS Other Foundation Trust BU,APR20-0002,6073995,30-04-20,05-05-20,Family Action,7298.59,2,TAX,FUNDING FOR FINANCIAL YEAR 2020-2021,ZERO,255056,Durham Management Team,734700,Contract : Other External,1000,Default Value,1000,Default Value,Fully Paid,05-06-20
Harrogate and District NHS Other Foundation Trust BU,HWI12811,6071357,01-04-20,08-04-20,Sheffield Hallam University,38096.4,1,ITEM,Payment of Invoice HWI12811 for Service Evaluation / Research Services - see attached,,252906,Yorkshire Cancer Network Recharges for Exercise and Health Referral Service,730700,Research And Development,1000,Default Value,1000,Default Value,Fully Paid,12-06-20
Harrogate and District NHS Other Foundation Trust BU,HWI12811,6071357,01-04-20,08-04-20,Sheffield Hallam University,-6349.4,1,ITEM,Payment of Invoice HWI12811 for Service Evaluation / Research Services - see attached,,252906,Yorkshire Cancer Network Recharges for Exercise and Health Referral Service,730700,Research And Development,1000,Default Value,1000,Default Value,Fully Paid,12-06-20
Harrogate and District NHS Other Foundation Trust BU,HWI12811,6071357,01-04-20,08-04-20,Sheffield Hallam University,6349.4,2,TAX,SERVICE PROVISION AUG2019 - OCT2020NOV2019 - JAN2020FEB2020 - 30 MARCH2020,74 COS,259999,Default Value,156000,Vat Debtor < One Year,1000,Default Value,1000,Default Value,Fully Paid,12-06-20
Harrogate and District NHS Other Foundation Trust BU,HWI12811,6071357,01-04-20,08-04-20,Sheffield Hallam University,0,2,TAX,SERVICE PROVISION AUG2019 - OCT2020NOV2019 - JAN2020FEB2020 - 30 MARCH2020,74 COS,252906,Yorkshire Cancer Network Recharges for Exercise and Health Referral Service,730700,Research And Development,1000,Default Value,1000,Default Value,Fully Paid,12-06-20
Harrogate and District NHS Other Foundation Trust BU,I000026115P-GB01,6074895,13-05-20,15-05-20,Nhs Professionals Ltd,22537.46,1,ITEM,,,251150,Chief Nurse,849000,Pay (Internal) Recharge : Received,1000,Default Value,1000,Default Value,Fully Paid,05-06-20
Harrogate and District NHS Other Foundation Trust BU,I000026115P-GB01,6074895,13-05-20,15-05-20,Nhs Professionals Ltd,-4507.5,2,TAX,NEP VAT REGIME - VAT TAX,41 COS,259999,Default Value,156000,Vat Debtor < One Year,1000,Default Value,1000,Default Value,Fully Paid,05-06-20
Harrogate and District NHS Other Foundation Trust BU,I000026115P-GB01,6074895,13-05-20,15-05-20,Nhs Professionals Ltd,4507.49,2,TAX,NEP VAT REGIME - VAT TAX,41 COS,259999,Default Value,156000,Vat Debtor < One Year,1000,Default Value,1000,Default Value,Fully Paid,05-06-20
Harrogate and District NHS Other Foundation Trust BU,I000026115P-GB01,6074895,13-05-20,15-05-20,Nhs Professionals Ltd,0,2,TAX,NEP VAT REGIME - VAT TAX,41 COS,251150,Chief Nurse,849000,Pay (Internal) Recharge : Received,1000,Default Value,1000,Default Value,Fully Paid,05-06-20
Harrogate and District NHS Other Foundation Trust BU,I000026115P-GB01,6074895,13-05-20,15-05-20,Nhs Professionals Ltd,4507.5,2,TAX,NEP VAT REGIME - VAT TAX,41 COS,259999,Default Value,156000,Vat Debtor < One Year,1000,Default Value,1000,Default Value,Fully Paid,05-06-20
Harrogate and District NHS Other Foundation Trust BU,I000026115P-GB01,6074895,13-05-20,15-05-20,Nhs Professionals Ltd,0,2,TAX,NEP VAT REGIME - VAT TAX,41 COS,251150,Chief Nurse,849000,Pay (Internal) Recharge : Received,1000,Default Value,1000,Default Value,Fully Paid,05-06-20
Harrogate and District NHS Other Foundation Trust BU,I000026115P-GB01,6074895,13-05-20,15-05-20,Nhs Professionals Ltd,0,2,TAX,NEP VAT REGIME - VAT TAX,41 COS,251150,Chief Nurse,849000,Pay (Internal) Recharge : Received,1000,Default Value,1000,Default Value,Fully Paid,05-06-20
Harrogate and District NHS Other Foundation Trust BU,I000026940P-GB01,6077477,03-06-20,10-06-20,Nhs Professionals Ltd,25188.05,1,ITEM,,,251150,Chief Nurse,849500,Planning Gap (Pay),1000,Default Value,1000,Default Value,Fully Paid,19-06-20
Harrogate and District NHS Other Foundation Trust BU,I000026940P-GB01,6077477,03-06-20,10-06-20,Nhs Professionals Ltd,0,2,TAX,NEP VAT REGIME - VAT TAX,41 COS,251150,Chief Nurse,849500,Planning Gap (Pay),1000,Default Value,1000,Default Value,Fully Paid,19-06-20
Harrogate and District NHS Other Foundation Trust BU,I000026940P-GB01,6077477,03-06-20,10-06-20,Nhs Professionals Ltd,5037.61,2,TAX,NEP VAT REGIME - VAT TAX,41 COS,259999,Default Value,156000,Vat Debtor < One Year,1000,Default Value,1000,Default Value,Fully Paid,19-06-20
Harrogate and District NHS Other Foundation Trust BU,I000026946P-GB01,6077494,03-06-20,10-06-20,Nhs Professionals Ltd,23295.26,1,ITEM,,,251150,Chief Nurse,849500,Planning Gap (Pay),1000,Default Value,1000,Default Value,Fully Paid,19-06-20
Harrogate and District NHS Other Foundation Trust BU,I000026946P-GB01,6077494,03-06-20,10-06-20,Nhs Professionals Ltd,0,2,TAX,NEP VAT REGIME - VAT TAX,41 COS,251150,Chief Nurse,849500,Planning Gap (Pay),1000,Default Value,1000,Default Value,Fully Paid,19-06-20
Harrogate and District NHS Other Foundation Trust BU,I000026946P-GB01,6077494,03-06-20,10-06-20,Nhs Professionals Ltd,4659.05,2,TAX,NEP VAT REGIME - VAT TAX,41 COS,259999,Default Value,156000,Vat Debtor < One Year,1000,Default Value,1000,Default Value,Fully Paid,19-06-20
Harrogate and District NHS Other Foundation Trust BU,MAY20-0002,6076830,31-05-20,04-06-20,Family Action,36492.93,1,ITEM,Purchase order number required for Family Action Sub  Contract 2019-20. Lot 3 Contract,,255056,Durham Management Team,734700,Contract : Other External,1000,Default Value,1000,Default Value,Fully Paid,19-06-20
Harrogate and District NHS Other Foundation Trust BU,MAY20-0002,6076830,31-05-20,04-06-20,Family Action,7298.59,2,TAX,NEP VAT REGIME - VAT TAX,ZERO,255056,Durham Management Team,734700,Contract : Other External,1000,Default Value,1000,Default Value,Fully Paid,19-06-20
Harrogate and District NHS Other Foundation Trust BU,MAY20-0002,6076830,31-05-20,04-06-20,Family Action,-7298.59,2,TAX,NEP VAT REGIME - VAT TAX,ZERO,255056,Durham Management Team,734700,Contract : Other External,1000,Default Value,1000,Default Value,Fully Paid,19-06-20
Harrogate and District NHS Other Foundation Trust BU,MAY20-0002,6076830,31-05-20,04-06-20,Family Action,0,2,TAX,NEP VAT REGIME - VAT TAX,ZERO,259999,Default Value,156000,Vat Debtor < One Year,1000,Default Value,1000,Default Value,Fully Paid,19-06-20
Harrogate and District NHS Other Foundation Trust BU,NAVS05599,6059081,08-11-19,24-12-19,Nhs Property Services Ltd,226832.1,1,ITEM,SETTLEMENT VARIOUS,,255256,Pct Premises Recharge,733100,Rent,1000,Default Value,4018,Nps033 - Nhs Property Services,Fully Paid,05-06-20
Harrogate and District NHS Other Foundation Trust BU,NAVS05599,6059081,08-11-19,24-12-19,Nhs Property Services Ltd,0,2,TAX,SETTLEMENT VARIOUS,ZERO,259999,Default Value,156000,Vat Debtor < One Year,1000,Default Value,1000,Default Value,Fully Paid,05-06-20
Harrogate and District NHS Other Foundation Trust BU,NAVS05599,6059081,08-11-19,24-12-19,Nhs Property Services Ltd,0,2,TAX,SETTLEMENT VARIOUS,ZERO,255256,Pct Premises Recharge,733100,Rent,1000,Default Value,4018,Nps033 - Nhs Property Services,Fully Paid,05-06-20
